Workbook

Sheet MENU PRINCIPAL
A1: INVERSIONES Y REPRESENTACIONES SALNEY LTDA.
A3: M A N E J O Y C O N T R O L D E C O S T O S
G6: <<MENU DE OPCIONES>>
G8: COSTOS FIJOS
G9: COSTOS VARIABLES
G10: CALCULOS DE COSTOS
G11: DATOS DE REFERENCIA

Sheet COSTOS FIJOS
A1: MENU PRINCIPAL | D1: COSTOS VARIABLES | G1: CALCULO DE COSTOS | J1: DATOS DE REFERENCIA
B6: COSTOS FIJOS
E8: VEHICULOS
B9: DESCRIPCION | E9: SPH-289 | G9: STL-357 | H9: SXZ-985 | J9: UYU-809 | K9: UZC-663
B10: SEGUROS | E10: 422100 | G10: 422100 | H10: 422100 | J10: 422100 | K10: 422100
B11: SALARIOS PRESTACIONES BASICAS | E11: 600000 | G11: 600000 | H11: 600000 | J11: 600000 | K11: 600000
B12: PARQUEADERO | E12: 140000 | G12: 140000 | H12: 140000 | J12: 140000 | K12: 140000
B13: IMPUESTOS | E13: 140000 | G13: 140000 | H13: 140000 | J13: 140000 | K13: 140000
B14: SERVICIO SATELITAL | E14: 86594 | G14: 86594 | H14: 86594 | J14: 86594 | K14: 86594

Sheet COSTOS VARIABLES
A1: MENU PRINCIPAL | D1: COSTOS FIJOS | F1: CALCULO DE COSTOS | J1: DATOS DE REFERENCIA | V1: COSTOS VARIABLES | Y1: CALCULO DE COSTOS
A3: KILOMETROS RECORRIDOS | C3: 8187.6 | G3: KILOMETROS RECORRIDOS | I3: 7379 | M3: KILOMETROS RECORRIDOS | O3: 7991 | S3: KILOMETROS RECORRIDOS | U3: 7284 | Y3: KILOMETROS RECORRIDOS | AA3: 7898
A4: No. DE HORAS | C4: 372.48 | G4: No. DE HORAS | I4: 362 | M4: No. DE HORAS | O4: 363 | S4: No. DE HORAS | U4: 393 | Y4: No. DE HORAS | AA4: 383
A5: No. VIAJES LOCAL | C5: 31 | G5: No. VIAJES LOCAL | I5: 28 | M5: No. VIAJES LOCAL | O5: 23 | S5: No. VIAJES LOCAL | U5: 10 | Y5: No. VIAJES LOCAL | AA5: 3
A6: No. VIAJES CARTAGENA | C6: 24 | G6: No. VIAJES CARTAGENA | I6: 21 | M6: No. VIAJES CARTAGENA | O6: 22 | S6: No. VIAJES CARTAGENA | U6: 19 | Y6: No. VIAJES CARTAGENA | AA6: 23
A7: No. SANTA MARTA | C7: 0 | G7: No. SANTA MARTA | I7: 0 | M7: No. SANTA MARTA | O7: 1 | S7: No. SANTA MARTA | U7: 6 | Y7: No. SANTA MARTA | AA7: 0
A8: No. DE VIAJES | C8: =SUM(C5:C7) -> 55 | G8: No. DE VIAJES | I8: =SUM(I5:I7) -> 49 | M8: No. DE VIAJES | O8: =SUM(O5:O7) -> 46 | S8: No. DE VIAJES | U8: =SUM(U5:U7) -> 35 | Y8: No. DE VIAJES | AA8: =SUM(AA5:AA7) -> 26
A9: FACTURACION MES | C9: 10731761 | G9: FACTURACION MES | M9: FACTURACION MES | S9: FACTURACION MES | Y9: FACTURACION MES
A11: VEHICULO | C11: SPH-289 | G11: VEHICULO | I11: STL-357 | M11: VEHICULOS | O11: SXZ-985 | S11: VEHICULOS | U11: SPH-289 | Y11: VEHICULOS | AA11: SPH-289
A13: MES | B13: DIA | C13: COSTO | D13: DESCRIPCION | E13: VALOR | G13: MES | H13: DIA | I13: COSTO | J13: DESCRIPCION | K13: VALOR | M13: MES | N13: DIA | O13: COSTO | P13: DESCRIPCION | Q13: VALOR | S13: MES | T13: DIA | U13: COSTO | V13: DESCRIPCION | W13: VALOR | Y13: MES | Z13: DIA | AA13: COSTO | AB13: DESCRIPCION | AC13: VALOR
A14: ENERO | B14: 2 | C14: CARTAGENA PEAJE | E14: 20000 | G14: ENERO | H14: 1 | I14: DOMINGO | K14: 0 | M14: ENERO | N14: 1. | O14: DOMINGO | Q14: 0- | S14: ENERO | T14: 1 | U14: DOMINGO | W14: 0 | Y14: ENERO | Z14: 1 | AA14: DOMINGO | AC14: 35000
A15: ENERO | B15: 3 | C15: CARTAGENA PEAJE | E15: 20000 | G15: ENERO | H15: 2 | I15: CARTAGENA PEAJE | K15: 24800 | M15: ENERO | N15: 2 | O15: CARTAGENA PEAJE | Q15: 24800 | S15: ENERO | T15: 2 | U15: CARTAGENA PEAJE | W15: 36400 | Y15: ENERO | Z15: 2 | AA15: CARTAGENA PEAJE | AC15: 36400
A16: ENERO | B16: 4 | C16: CARTAGENA PEAJE | E16: 24800 | G16: ENERO | H16: 3 | I16: CARTAGENA PEAJE | K16: 24800 | M16: ENERO | N16: 3 | O16: CARTAGENA PEAJE | Q16: 24800 | S16: ENERO | T16: 3 | U16: SANTA MARTA PEAJE | W16: 51200 | Y16: ENERO | Z16: 3 | AA16: CARTAGENA PEAJE | AC16: 36400
A17: ENERO | B17: 5 | C17: CARTAGENA PEAJE | E17: 24800 | G17: ENERO | H17: 3 | I17: MANTENIMIENTO | J17: COMPRA DE CORREA | K17: 23001 | M17: ENERO | N17: 4 | O17: CARTAGENA PEAJE | Q17: 24800 | S17: ENERO | T17: 4 | U17: CARTAGENA PEAJE | W17: 36400 | Y17: ENERO | Z17: 4 | AA17: CARTAGENA PEAJE | AC17: 36400
A18: ENERO | B18: 6 | C18: CARTAGENA PEAJE | E18: 24800 | G18: ENERO | H18: 4 | I18: CARTAGENA PEAJE | K18: 36400 | M18: ENERO | N18: 5 | O18: CARTAGENA PEAJE | Q18: 24800 | S18: ENERO | T18: 5 | U18: SANTA MARTA PEAJE | W18: 51200 | Y18: ENERO | Z18: 4 | AA18: CAMBIO ACEITE | AC18: 148000
A19: ENERO | B19: 6 | C19: CAMBIO ACEITE | E19: 130300 | G19: ENERO | H19: 5 | I19: CAMBIO ACEITE | K19: 131500 | M19: ENERO | N19: 6 | O19: CARTAGENA PEAJE | Q19: 24800 | S19: ENERO | T19: 6 | U19: CARTAGENA PEAJE | W19: 36400 | Y19: ENERO | Z19: 5 | AA19: CARTAGENA PEAJE | AC19: 36400
A20: ENERO | B20: 7 | C20: CARTAGENA PEAJE | E20: 24800 | G20: ENERO | H20: 5 | I20: LOCAL | K20: 0 | M20: ENERO | N20: 7 | O20: SANTA MARTA PEAJE | Q20: 52800 | S20: ENERO | T20: 7 | U20: CARTAGENA PEAJE | W20: 37400 | Y20: ENERO | Z20: 6 | AA20: CARTAGENA PEAJE | AC20: 36400
A21: ENERO | B21: 8 | C21: LAVADO Y PARQUEO | E21: 35000 | G21: ENERO | H21: 6 | I21: CARTAGENA PEAJE | K21: 24800 | M21: ENERO | N21: 8 | O21: LAVADO Y PARQUEO | Q21: 35000 | S21: ENERO | T21: 8 | U21: LAVADO Y PARQUEO | W21: 35000 | Y21: ENERO | Z21: 7 | AA21: CARTAGENA PEAJE | AC21: 36400
A22: ENERO | B22: 8 | C22: CARTAGENA PEAJE | E22: 24800 | G22: ENERO | H22: 7 | I22: CARTAGENA PEAJE | K22: 13200 | M22: ENERO | N22: 8 | O22: CARTAGENA PEAJE | Q22: 24800 | S22: ENERO | T22: 9 | U22: FESTIVO | W22: 0 | Y22: ENERO | Z22: 8 | AA22: LAVADO Y PARQUEO | AC22: 35000
A23: ENERO | B23: 9 | C23: LOCAL | E23: 0 | G23: ENERO | H23: 8 | I23: LAVADO Y PARQUEO | K23: 35000 | M23: ENERO | N23: 9 | O23: LOCAL | Q23: 0 | S23: ENERO | T23: 10 | U23: SEGURIDAD SOCIAL | W23: 198200 | Y23: ENERO | Z23: 8 | AA23: MANTENIMIENTO | AB23: ARREGLO LATONERIA | AC23: 100000
A24: ENERO | B24: 10 | C24: CARTAGENA PEAJE | E24: 24800 | G24: ENERO | H24: 8 | I24: SALARIO | J24: DOTACION SR. PACHECO | K24: 40000 | M24: ENERO | N24: 10 | O24: SEGURIDAD SOCIAL | Q24: 176600 | S24: ENERO | T24: 10 | U24: CARTAGENA PEAJE | W24: 36400 | Y24: ENERO | Z24: 9 | AA24: FESTIVO | AC24: 0
A25: ENERO | B25: 11 | C25: CARTAGENA PEAJE | E25: 24800 | G25: ENERO | H25: 9 | I25: LOCAL | K25: 0 | M25: ENERO | N25: 10 | O25: CARTAGENA PEAJE | Q25: 24800 | S25: ENERO | T25: 11 | U25: CARTAGENA PEAJE | W25: 36400 | Y25: ENERO | Z25: 9 | AA25: MANTENIMIENTO | AB25: COMPRA ELECTRICO | AC25: 5700
A26: ENERO | B26: 11 | C26: MANTENIMIENTO | D26: COMPRA ROPAIN | E26: 29000 | G26: ENERO | H26: 10 | I26: SEGURIDAD SOCIAL | K26: 90700 | M26: ENERO | N26: 11 | O26: CARTAGENA PEAJE | Q26: 13200 | S26: ENERO | T26: 12 | U26: CARTAGENA PEAJE | W26: 36400 | Y26: ENERO | Z26: 10 | AA26: CARTAGENA PEAJE | AC26: 36400
A27: ENERO | B27: 12 | C27: LOCAL | E27: 0 | G27: ENERO | H27: 10 | I27: CARTAGENA PEAJE | K27: 24800 | M27: ENERO | N27: 12 | O27: CARTAGENA PEAJE | Q27: 24800 | S27: ENERO | T27: 13 | U27: PAGO SATELITAL | W27: 90831 | Y27: ENERO | Z27: 11 | AA27: CARTAGENA PEAJE | AC27: 36400
A28: ENERO | B28: 12 | C28: OTROS | D28: COMPRA ESTIBAS | E28: 135000 | G28: ENERO | H28: 11 | I28: CARTAGENA PEAJE | K28: 24800 | M28: ENERO | N28: 13 | O28: PAGO SATELITAL | Q28: 90831 | S28: ENERO | T28: 13 | U28: CAMBIO ACEITE | W28: 163600 | Y28: ENERO | Z28: 12 | AA28: CARTAGENA PEAJE | AC28: 36400
A29: ENERO | B29: 13 | C29: PAGO SATELITAL | E29: 90831 | G29: ENERO | H29: 12 | I29: CARTAGENA PEAJE | K29: 24800 | M29: ENERO | N29: 13 | O29: CAMBIO ACEITE | Q29: 172800 | S29: ENERO | T29: 13 | U29: CARTAGENA PEAJE | W29: 36400 | Y29: ENERO | Z29: 13 | AA29: PAGO SATELITAL | AC29: 90831
A30: ENERO | B30: 13 | C30: SEGURIDAD SOCIAL | E30: 176600 | G30: ENERO | H30: 13 | I30: OTROS | J30: RECIBO DE CAJA MENOR | K30: 3200 | M30: ENERO | N30: 13 | O30: LOCAL | Q30: 0 | S30: ENERO | T30: 14 | U30: CARTAGENA PEAJE | W30: 36400 | Y30: ENERO | Z30: 13 | AA30: CARTAGENA PEAJE | AC30: 36400
A31: ENERO | B31: 13 | C31: CARTAGENA PEAJE | E31: 24800 | G31: ENERO | H31: 13 | I31: PAGO SATELITAL | K31: 90831 | M31: ENERO | N31: 14 | O31: CARTAGENA PEAJE | Q31: 24800 | S31: ENERO | T31: 15 | U31: LAVADO Y PARQUEO | W31: 35000 | Y31: ENERO | Z31: 14 | AA31: CARTAGENA PEAJE | AC31: 36400
A32: ENERO | B32: 14 | C32: CARTAGENA PEAJE | E32: 24800 | G32: ENERO | H32: 13 | I32: CARTAGENA PEAJE | K32: 31600 | M32: ENERO | N32: 15 | O32: LAVADO Y PARQUEO | Q32: 35000 | S32: ENERO | T32: 15 | U32: SALARIO | W32: 300000 | Y32: ENERO | Z32: 15 | AA32: LAVADO Y PARQUEO | AC32: 35000
A33: ENERO | B33: 15 | C33: SALARIO | E33: 300000 | G33: ENERO | H33: 14 | I33: LAVADO Y PARQUEO | K33: 35000 | M33: ENERO | N33: 15 | O33: SALARIO | Q33: 300000 | S33: ENERO | T33: 15 | U33: COMISION TRABAJADOR | W33: 495000 | Y33: ENERO | Z33: 15 | AA33: SALARIO | AC33: 300000
A34: ENERO | B34: 15 | C34: COMISION TRABAJADOR | E34: 514000 | G34: ENERO | H34: 15 | I34: SALARIO | K34: 300000 | M34: ENERO | N34: 15 | O34: COMISION TRABAJADOR | Q34: 476000 | S34: ENERO | T34: 16 | U34: CARTAGENA PEAJE | W34: 37300 | Y34: ENERO | Z34: 15 | AA34: COMISION TRABAJADOR | AC34: 455000
A35: ENERO | B35: 15 | C35: LAVADO Y PARQUEO | E35: 35000 | G35: ENERO | H35: 15 | I35: COMISION TRABAJADOR | K35: 414000 | M35: ENERO | N35: 16 | O35: LOCAL | Q35: 0 | S35: ENERO | T35: 17 | U35: CARTAGENA PEAJE | W35: 37600 | Y35: ENERO | Z35: 16 | AA35: CARTAGENA PEAJE | AC35: 37300
A36: ENERO | B36: 15 | C36: MANTENIMIENTO | D36: COMPRA REP. FRENOS | E36: 64000 | G36: ENERO | H36: 16 | I36: CARTAGENA PEAJE | K36: 25600 | M36: ENERO | N36: 16 | O36: FILTRO | P36: FILTRO VEHICOSTA | Q36: 146209 | S36: ENERO | T36: 18 | U36: CARTAGENA PEAJE | W36: 37600 | Y36: ENERO | Z36: 17 | AA36: CARTAGENA PEAJE | AC36: 37600
A37: ENERO | B37: 15 | C37: MANTENIMIENTO | D37: MANO DE OBRA REP. FRENOS | E37: 50000 | G37: ENERO | H37: 17 | I37: CARTAGENA PEAJE | K37: 20600 | M37: ENERO | N37: 17 | O37: CARTAGENA PEAJE | Q37: 25600 | S37: ENERO | T37: 19 | U37: LOCAL | W37: 0 | Y37: ENERO | Z37: 18 | AA37: CARTAGENA PEAJE | AC37: 37600
A38: ENERO | B38: 16 | C38: CARTAGENA PEAJE | E38: 25600 | G38: ENERO | H38: 18 | I38: CARTAGENA PEAJE | K38: 25600 | M38: ENERO | N38: 18 | O38: CARTAGENA PEAJE | Q38: 25600 | S38: ENERO | T38: 20 | U38: CARTAGENA PEAJE | W38: 37600 | Y38: ENERO | Z38: 19 | AA38: MANTENIMIENTO | AB38: COMPRA DE PORTA ESCOBILLAS | AC38: 7800
A39: ENERO | B39: 17 | C39: CARTAGENA PEAJE | E39: 25600 | G39: ENERO | H39: 20 | I39: CARTAGENA PEAJE | K39: 25600 | M39: ENERO | N39: 19 | O39: CARTAGENA PEAJE | Q39: 25600 | S39: ENERO | T39: 20 | U39: MANTENIMIENTO | V39: COMPRA REPARACION VEHICULO | W39: 105000 | Y39: ENERO | Z39: 19 | AA39: CARTAGENA PEAJE | AC39: 37600
A40: ENERO | B40: 18 | C40: CARTAGENA PEAJE | E40: 25600 | G40: ENERO | H40: 21 | I40: CARTAGENA PEAJE | K40: 25600 | M40: ENERO | N40: 20 | O40: CARTAGENA PEAJE | Q40: 25600 | S40: ENERO | T40: 20 | U40: MANTENIMIENTO | V40: MANO DE OBRA REP. VEHICULO | W40: 50000 | Y40: ENERO | Z40: 20 | AA40: CARTAGENA PEAJE | AC40: 37600
A41: ENERO | B41: 19 | C41: CARTAGENA PEAJE | E41: 25600 | G41: ENERO | H41: 22 | I41: LAVADO Y PARQUEO | K41: 35000 | M41: ENERO | N41: 21 | O41: CARTAGENA PEAJE | Q41: 25600 | S41: ENERO | T41: 20 | U41: MANTENIMIENTO | V41: COMPRA DE REPUESTOS | W41: 55000 | Y41: ENERO | Z41: 21 | AA41: MANTENIMIENTO | AB41: COMPRA DE BALINERAS | AC41: 20000
A42: ENERO | B42: 20 | C42: LOCAL | E42: 0 | G42: ENERO | H42: 23 | I42: CARTAGENA PEAJE | K42: 20600 | M42: ENERO | N42: 22 | O42: LAVADO Y PARQUEO | Q42: 35000 | S42: ENERO | T42: 21 | U42: CARTAGENA PEAJE | W42: 43400 | Y42: ENERO | Z42: 21 | AA42: MANTENIMIENTO | AB42: MANO DE OBRA REPARACION VEHICULO | AC42: 80000
A43: ENERO | B43: 21 | C43: CARTAGENA PEAJE | E43: 25600 | G43: ENERO | H43: 24 | I43: CARTAGENA PEAJE | K43: 25600 | M43: ENERO | N43: 23 | O43: CARTAGENA PEAJE | Q43: 25600 | S43: ENERO | T43: 22 | U43: LAVADO Y PARQUEO | W43: 35000 | Y43: ENERO | Z43: 21 | AA43: MANTENIMIENTO | AB43: MANO DE OBRA REPARACION VEHICULO | AC43: 30000
A44: ENERO | B44: 22 | C44: LAVADO Y PARQUEO | E44: 35000 | G44: ENERO | H44: 24 | I44: LLANTAS | J44: COMPRA NEUMATICO + PROTECTOR | K44: 94000 | M44: ENERO | N44: 24 | O44: LOCAL | Q44: 0 | S44: ENERO | T44: 23 | U44: CARTAGENA PEAJE | W44: 37600 | Y44: ENERO | Z44: 21 | AA44: NO LABORO | AC44: 0
A45: ENERO | B45: 23 | C45: CARTAGENA PEAJE | E45: 25600 | G45: ENERO | H45: 25 | I45: CARTAGENA PEAJE | K45: 13600 | M45: ENERO | N45: 25 | O45: CARTAGENA PEAJE | Q45: 25600 | S45: ENERO | T45: 24 | U45: SANTA MARTA PEAJE | W45: 52800 | Y45: ENERO | Z45: 22 | AA45: LAVADO Y PARQUEO | AC45: 35000
A46: ENERO | B46: 24 | C46: CARTAGENA PEAJE | E46: 25600 | G46: ENERO | H46: 26 | I46: LOCAL | K46: 0 | M46: ENERO | N46: 26 | O46: CARTAGENA PEAJE | Q46: 25600 | S46: ENERO | T46: 25 | U46: CARTAGENA PEAJE | W46: 37600 | Y46: ENERO | Z46: 23 | AA46: NO LABORO | AC46: 0
A47: ENERO | B47: 24 | C47: LLANTAS | D47: NEUMATICO + PROTECTOR | E47: 449000 | G47: ENERO | H47: 27 | I47: CARTAGENA PEAJE | K47: 25600 | M47: ENERO | N47: 27 | O47: CARTAGENA PEAJE | Q47: 20600 | S47: ENERO | T47: 26 | U47: SANTA MARTA PEAJE | W47: 52800 | Y47: ENERO | Z47: 24 | AA47: CARTAGENA PEAJE | AC47: 37600
A48: ENERO | B48: 24 | C48: LLANTAS | D48: COMPRA DE LLANTAS | E48: 403500 | G48: ENERO | H48: 28 | I48: CARTAGENA PEAJE | K48: 13600 | M48: ENERO | N48: 28 | O48: CARTAGENA PEAJE | Q48: 25600 | S48: ENERO | T48: 27 | U48: CARTAGENA PEAJE | W48: 37600 | Y48: ENERO | Z48: 25 | AA48: CARTAGENA PEAJE | AC48: 37600
A49: ENERO | B49: 25 | C49: CARTAGENA PEAJE | E49: 20600 | G49: ENERO | H49: 29 | I49: LAVADO Y PARQUEO | K49: 35000 | M49: ENERO | N49: 29 | O49: LAVADO Y PARQUEO | Q49: 35000 | S49: ENERO | T49: 28 | U49: SANTA MARTA PEAJE | W49: 52800 | Y49: ENERO | Z49: 26 | AA49: CARTAGENA PEAJE | AC49: 37600
A50: ENERO | B50: 26 | C50: CARTAGENA PEAJE | E50: 25600 | G50: ENERO | H50: 30 | I50: CARTAGENA PEAJE | K50: 25600 | M50: ENERO | N50: 30 | O50: CARTAGENA PEAJE | Q50: 25600 | S50: ENERO | T50: 29 | U50: LAVADO Y PARQUEO | W50: 35000 | Y50: ENERO | Z50: 27 | AA50: CARTAGENA PEAJE | AC50: 37600
A51: ENERO | B51: 27 | C51: LOCAL | E51: 0 | G51: ENERO | H51: 31 | I51: CARTAGENA PEAJE | K51: 25600 | M51: ENERO | N51: 31 | O51: CARTAGENA PEAJE | Q51: 25600 | S51: ENERO | T51: 30 | U51: CARTAGENA PEAJE | W51: 43700 | Y51: ENERO | Z51: 27 | AA51: SALARIO | AB51: DESCARGUE DANONY | AC51: 15000
A52: ENERO | B52: 27 | C52: CAMBIO ACEITE | E52: 158300 | G52: ENERO | H52: 31 | I52: COMISION TRABAJADOR | K52: 532000 | M52: ENERO | N52: 31 | O52: COMISION TRABAJADOR | Q52: 520000 | S52: ENERO | T52: 31 | U52: SANTA MARTA PEAJE | W52: 52800 | Y52: ENERO | Z52: 27 | AA52: MANTENIMIENTO | AB52: COMPRA DE CHUPAS | AC52: 20000
A53: ENERO | B53: 28 | C53: CARTAGENA PEAJE | E53: 25600 | G53: ENERO | H53: 31 | I53: SALARIO | K53: 300000 | M53: ENERO | N53: 31 | O53: SALARIO | Q53: 300000 | S53: ENERO | T53: 31 | U53: SALARIO | W53: 300000 | Y53: ENERO | Z53: 27 | AA53: CAMBIO ACEITE | AC53: 146900
A54: ENERO | B54: 29 | C54: LAVADO Y PARQUEO | E54: 35000 | G54: ENERO | H54: 31 | I54: COMISION NEIDA SALGADO | K54: 250000 | M54: ENERO | N54: 31 | O54: ACPM | Q54: 3009903 | S54: ENERO | T54: 31 | U54: COMISION TRABAJADOR | W54: 587000 | Y54: ENERO | Z54: 27 | AA54: MANTENIMIENTO | AB54: COMPRA DE FRENOS Y FRENOS | AC54: 15320
A55: ENERO | B55: 30 | C55: CARTAGENA PEAJE | E55: 25600 | G55: ENERO | H55: 31 | I55: SERVICIOS PRESTADOS HEIDY BARRIOS | K55: 40000 | M55: ENERO | N55: 31 | O55: SERVICIOS PRESTADOS HEIDY BARRIOS | Q55: 40000 | S55: ENERO | T55: 31 | U55: ACPM | W55: 2971558 | Y55: ENERO | Z55: 27 | AA55: SEGURIDAD SOCIAL | AC55: 100000
A56: ENERO | B56: 31 | C56: CARTAGENA PEAJE | E56: 25600 | G56: ENERO | H56: 31 | I56: ACPM | K56: 2616431 | Y56: ENERO | Z56: 28 | AA56: CARTAGENA PEAJE | AC56: 37600
A57: ENERO | B57: 31 | C57: SALARIO | E57: 300000 | K57: =SUM(K14:K56) -> 5568863 | Y57: ENERO | Z57: 29 | AA57: LAVADO Y PARQUEO | AC57: 35000
A58: ENERO | B58: 31 | C58: COMISION TRABAJADOR | E58: 554000 | Y58: ENERO | Z58: 29 | AA58: MANTENIMIENTO | AB58: COMPRA DE REPUESTOS | AC58: 185000
A59: ENERO | B59: 31 | C59: SERVICIOS PRESTADOS HEIDY BARRIOS | E59: 40000 | Y59: ENERO | Z59: 29 | AA59: MANTENIMIENTO | AB59: MANO DE OBRA CAMBIO DE REPUESTOS | AC59: 75000
A60: ENERO | B60: 31 | C60: COMISION NEIDA SALGADO | E60: 250000 | Y60: ENERO | Z60: 30 | AA60: CARTAGENA PEAJE | AC60: 37600
A61: ENERO | B61: 31 | C61: ACPM | E61: 2765487 | Y61: ENERO | Z61: 31 | AA61: CARTAGENA PEAJE | AC61: 37600
Y62: ENERO | Z62: 31 | AA62: SALARIO | AC62: 300000
Y63: ENERO | Z63: 31 | AA63: COMISION TRABAJADOR | AC63: 490000
Y64: ENERO | Z64: 31 | AA64: COMISION NEIDA SALGADO | AC64: 250000
Y65: ENERO | Z65: 31 | AA65: SERVICIOS PRESTADOS HEIDY BARRIOS | AC65: 40000
Y66: ENERO | Z66: 31 | AA66: ACPM | AC66: 2863107

Sheet CALCULOS DE COSTOS
A1: MENU PRINCIPAL | C1: COSTOS FIJOS | E1: COSTOS VARIABLES | H1: DATOS DE REFERENCIA | U1: COSTOS VARIABLES | X1: CALCULO DE COSTOS
B4: SPH-289 | C4: STL-357 | D4: SXZ-985 | E4: UYU-809 | F4: UZC-663
A5: COMBUSTIBLE | B5: =+SUMIF('COSTOS VARIABLES'!C:C,"ACPM",'COSTOS VARIABLES'!E:E) -> 2765487 | C5: =+SUMIF('COSTOS VARIABLES'!I:I,"ACPM",'COSTOS VARIABLES'!K:K) -> 2616431 | D5: =+SUMIF('COSTOS VARIABLES'!O:O,"ACPM",'COSTOS VARIABLES'!Q:Q) -> 3009903 | E5: =+SUMIF('COSTOS VARIABLES'!U:U,"ACPM",'COSTOS VARIABLES'!W:W) -> 2971558 | F5: =+SUMIF('COSTOS VARIABLES'!AA:AA,"ACPM",'COSTOS VARIABLES'!AC:AC) -> 2863107
A6: COMISIONES | B6: =+SUMIF('COSTOS VARIABLES'!C:C,"COMISION TRABAJADOR",'COSTOS VARIABLES'!E:E) -> 1068000 | C6: =+SUMIF('COSTOS VARIABLES'!I:I,"COMISION TRABAJADOR",'COSTOS VARIABLES'!K:K) -> 946000 | D6: =+SUMIF('COSTOS VARIABLES'!O:O,"COMISION TRABAJADOR",'COSTOS VARIABLES'!Q:Q) -> 996000 | E6: =+SUMIF('COSTOS VARIABLES'!U:U,"COMISION TRABAJADOR",'COSTOS VARIABLES'!W:W) -> 1082000 | F6: =+SUMIF('COSTOS VARIABLES'!AA:AA,"COMISION TRABAJADOR",'COSTOS VARIABLES'!AC:AC) -> 945000
A7: LUBRICANTES | B7: =+SUMIF('COSTOS VARIABLES'!C:C,"CAMBIO ACEITE",'COSTOS VARIABLES'!E:E) -> 288600 | C7: =+SUMIF('COSTOS VARIABLES'!I:I,"CAMBIO ACEITE",'COSTOS VARIABLES'!K:K) -> 131500 | D7: =+SUMIF('COSTOS VARIABLES'!O:O,"CAMBIO ACEITE",'COSTOS VARIABLES'!Q:Q) -> 172800 | E7: =+SUMIF('COSTOS VARIABLES'!U:U,"CAMBIO ACEITE",'COSTOS VARIABLES'!W:W) -> 163600 | F7: =+SUMIF('COSTOS VARIABLES'!AA:AA,"CAMBIO ACEITE",'COSTOS VARIABLES'!AC:AC) -> 294900
A8: LLANTAS | B8: =+SUMIF('COSTOS VARIABLES'!C:C,"LLANTAS",'COSTOS VARIABLES'!E:E) -> 852500 | C8: =+SUMIF('COSTOS VARIABLES'!I:I,"LLANTAS",'COSTOS VARIABLES'!K:K) -> 94000 | D8: =+SUMIF('COSTOS VARIABLES'!O:O,"LLANTAS",'COSTOS VARIABLES'!Q:Q) -> 0 | E8: =+SUMIF('COSTOS VARIABLES'!U:U,"LLANTAS",'COSTOS VARIABLES'!W:W) -> 0 | F8: =+SUMIF('COSTOS VARIABLES'!AA:AA,"LLANTAS",'COSTOS VARIABLES'!AC:AC) -> 0
A9: ADMINISTRATIVOS | B9: =+SUMIF('COSTOS VARIABLES'!C:C,"COMISION NEIDA SALGADO",'COSTOS VARIABLES'!E:E)+SUMIF('COSTOS VARIABLES'!C:C,"SERVICIOS PRESTADOS HEIDY BARRIOS",'COSTOS VARIABLES'!E:E)+SUMIF('COSTOS VARIABLES'!C:C,"OTROS",'COSTOS VARIABLES'!E:E)+SUMIF('COSTOS VARIABLES'!C:C,"PAGO SATELITAL",'COSTOS VARIABLES'!E:E) -> 515831 | C9: =+SUMIF('COSTOS VARIABLES'!I:I,"COMISION NEIDA SALGADO",'COSTOS VARIABLES'!K:K)+SUMIF('COSTOS VARIABLES'!I:I,"SERVICIOS PRESTADOS HEIDY BARRIOS",'COSTOS VARIABLES'!K:K)+SUMIF('COSTOS VARIABLES'!I:I,"OTROS",'COSTOS VARIABLES'!K:K)+SUMIF('COSTOS VARIABLES'!I:I,"PAGO SATELITAL",'COSTOS VARIABLES'!K:K) -> 384031 | D9: =+SUMIF('COSTOS VARIABLES'!O:O,"COMISION NEIDA SALGADO",'COSTOS VARIABLES'!Q:Q)+SUMIF('COSTOS VARIABLES'!O:O,"SERVICIOS PRESTADOS HEIDY BARRIOS",'COSTOS VARIABLES'!Q:Q)+SUMIF('COSTOS VARIABLES'!O:O,"OTROS",'COSTOS VARIABLES'!Q:Q)+SUMIF('COSTOS VARIABLES'!O:O,"PAGO SATELITAL",'COSTOS VARIABLES'!Q:Q) -> 130831 | E9: =+SUMIF('COSTOS VARIABLES'!U:U,"COMISION NEIDA SALGADO",'COSTOS VARIABLES'!W:W)+SUMIF('COSTOS VARIABLES'!U:U,"SERVICIOS PRESTADOS HEIDY BARRIOS",'COSTOS VARIABLES'!W:W)+SUMIF('COSTOS VARIABLES'!U:U,"OTROS",'COSTOS VARIABLES'!W:W)+SUMIF('COSTOS VARIABLES'!U:U,"PAGO SATELITAL",'COSTOS VARIABLES'!W:W) -> 90831 | F9: =+SUMIF('COSTOS VARIABLES'!AA:AA,"COMISION NEIDA SALGADO",'COSTOS VARIABLES'!AC:AC)+SUMIF('COSTOS VARIABLES'!AA:AA,"SERVICIOS PRESTADOS HEIDY BARRIOS",'COSTOS VARIABLES'!AC:AC)+SUMIF('COSTOS VARIABLES'!AA:AA,"OTROS",'COSTOS VARIABLES'!AC:AC)+SUMIF('COSTOS VARIABLES'!AA:AA,"PAGO SATELITAL",'COSTOS VARIABLES'!AC:AC) -> 380831
A10: FILTROS | B10: =+SUMIF('COSTOS VARIABLES'!C:C,"FILTRO",'COSTOS VARIABLES'!E:E) -> 0 | C10: =+SUMIF('COSTOS VARIABLES'!I:I,"FILTRO",'COSTOS VARIABLES'!K:K) -> 0 | D10: =+SUMIF('COSTOS VARIABLES'!O:O,"FILTRO",'COSTOS VARIABLES'!Q:Q) -> 146209 | E10: =+SUMIF('COSTOS VARIABLES'!U:U,"FILTRO",'COSTOS VARIABLES'!W:W) -> 0 | F10: =+SUMIF('COSTOS VARIABLES'!AA:AA,"FILTRO",'COSTOS VARIABLES'!AC:AC) -> 0
A11: SEGUROS, PARQUEADERO, IMPUESTOS | B11: =+SUMIF('COSTOS VARIABLES'!C:C,"lavado y parqueo",'COSTOS VARIABLES'!E:E) -> 140000 | C11: =+SUMIF('COSTOS VARIABLES'!I:I,"lavado y parqueo",'COSTOS VARIABLES'!K:K) -> 140000 | D11: =+SUMIF('COSTOS VARIABLES'!O:O,"lavado y parqueo",'COSTOS VARIABLES'!Q:Q) -> 140000 | E11: =+SUMIF('COSTOS VARIABLES'!U:U,"lavado y parqueo",'COSTOS VARIABLES'!W:W) -> 140000 | F11: =+SUMIF('COSTOS VARIABLES'!AA:AA,"lavado y parqueo",'COSTOS VARIABLES'!AC:AC) -> 140000
A12: SALARIOS | B12: =+SUMIF('COSTOS VARIABLES'!C:C,"SALARIO",'COSTOS VARIABLES'!E:E)+SUMIF('COSTOS VARIABLES'!C:C,"SEGURIDAD SOCIAL",'COSTOS VARIABLES'!E:E) -> 776600 | C12: =+SUMIF('COSTOS VARIABLES'!I:I,"SALARIO",'COSTOS VARIABLES'!K:K)+SUMIF('COSTOS VARIABLES'!I:I,"SEGURIDAD SOCIAL",'COSTOS VARIABLES'!K:K) -> 730700 | D12: =+SUMIF('COSTOS VARIABLES'!O:O,"SALARIO",'COSTOS VARIABLES'!Q:Q)+SUMIF('COSTOS VARIABLES'!O:O,"SEGURIDAD SOCIAL",'COSTOS VARIABLES'!Q:Q) -> 776600 | E12: =+SUMIF('COSTOS VARIABLES'!U:U,"SALARIO",'COSTOS VARIABLES'!W:W)+SUMIF('COSTOS VARIABLES'!U:U,"SEGURIDAD SOCIAL",'COSTOS VARIABLES'!W:W) -> 798200 | F12: =+SUMIF('COSTOS VARIABLES'!AA:AA,"SALARIO",'COSTOS VARIABLES'!AC:AC)+SUMIF('COSTOS VARIABLES'!AA:AA,"SEGURIDAD SOCIAL",'COSTOS VARIABLES'!AC:AC) -> 715000
A13: MANTENIMIENTO | B13: =+SUMIF('COSTOS VARIABLES'!C:C,"MANTENIMIENTO",'COSTOS VARIABLES'!E:E) -> 143000 | C13: =+SUMIF('COSTOS VARIABLES'!I:I,"MANTENIMIENTO",'COSTOS VARIABLES'!K:K) -> 23001 | D13: =+SUMIF('COSTOS VARIABLES'!O:O,"MANTENIMIENTO",'COSTOS VARIABLES'!Q:Q) -> 0 | E13: =+SUMIF('COSTOS VARIABLES'!U:U,"MANTENIMIENTO",'COSTOS VARIABLES'!W:W) -> 210000 | F13: =+SUMIF('COSTOS VARIABLES'!AA:AA,"MANTENIMIENTO",'COSTOS VARIABLES'!AC:AC) -> 538820
A14: PEAJES | B14: =+SUMIF('COSTOS VARIABLES'!C:C,"CARTAGENA PEAJE",'COSTOS VARIABLES'!E:E) -> 565400 | C14: =+SUMIF('COSTOS VARIABLES'!I:I,"CARTAGENA PEAJE",'COSTOS VARIABLES'!K:K)+SUMIF('COSTOS VARIABLES'!I:I,"SANTA MARTA PEAJE",'COSTOS VARIABLES'!K:K) -> 503200 | D14: =+SUMIF('COSTOS VARIABLES'!O:O,"CARTAGENA PEAJE",'COSTOS VARIABLES'!Q:Q)+SUMIF('COSTOS VARIABLES'!O:O,"SANTA MARTA PEAJE",'COSTOS VARIABLES'!Q:Q) -> 591400 | E14: =+SUMIF('COSTOS VARIABLES'!U:U,"CARTAGENA PEAJE",'COSTOS VARIABLES'!W:W)+SUMIF('COSTOS VARIABLES'!U:U,"SANTA MARTA PEAJE",'COSTOS VARIABLES'!W:W) -> 992200 | F14: =+SUMIF('COSTOS VARIABLES'!AA:AA,"CARTAGENA PEAJE",'COSTOS VARIABLES'!AC:AC)+SUMIF('COSTOS VARIABLES'!AA:AA,"SANTA MARTA PEAJE",'COSTOS VARIABLES'!AC:AC) -> 851300
B17: SPH-289 | C17: STL-357 | D17: SXZ-985 | E17: UYU-809 | F17: UZC-663 | G17: TOTAL
A18: KILOMETROS RECORRIDOS | B18: 8187.6 | C18: 7378.8 | D18: 7990.7 | E18: 7513.1 | F18: 7879.7 | G18: =SUM(B18:F18) -> 38949.9
A19: No. DE HORAS | B19: 372.48 | C19: 361.91 | D19: 362.91 | E19: 393.41 | F19: 382.5 | G19: =SUM(B19:F19) -> 1873.21
A20: CANTIDAD DE GALONES CONSUMIDOS | B20: 350.9608161 | C20: 332.0445039 | D20: 381.9790197 | E20: 377.1127547 | F20: 363.3495183 | G20: 1805.446613
A21: No. VIAJES LOCAL | B21: 31 | C21: 28 | D21: 23 | E21: 10 | F21: 0 | G21: =SUM(B21:F21) -> 92
A22: No. VIAJES CARTAGENA | B22: 24 | C22: 21 | D22: 22 | E22: 18 | F22: 26 | G22: =SUM(B22:F22) -> 111
A23: NO. VIAJES SANTA MARTA | B23: 0 | C23: 0 | D23: 1 | E23: 6 | F23: 0 | G23: =SUM(B23:F23) -> 7
A24: No. DE VIAJES | B24: =SUM(B21:B23) -> 55 | C24: =SUM(C21:C23) -> 49 | D24: 46 | E24: 34 | F24: 26 | G24: =SUM(B24:F24) -> 210
A27: ACTIVIDAD | B27: CONDUCTOR | C27: CARTAGENA | D27: LOCAL | E27: SANTA MARTA | F27: RECORRIDOS INTERNOS
A28: 1 PLANEAR RUTA DE ENTREGA | B28: No. de Viajes | C28: =+(SUM($B$14:$F$14)*($G$22/$G$24)) -> 1851850 | D28: =+(SUM($B$14:$F$14)*(G21/$G$24)) -> 1534866.667 | E28: =+(SUM($B$14:$F$14)*(G23/$G$24)) -> 116783.3333
A29: 2 CARGAR CAMION | B29: No. de Viajes | C29: =+(SUM($B$11:$F$11)*('DATOS REFERENCIA'!$A$7/'DATOS REFERENCIA'!$B$9)+(SUM($B$12:$F$12)*'DATOS REFERENCIA'!$A$7/'DATOS REFERENCIA'!$B$9))*(G22/G24) -> 594259.6429 | D29: =+(SUM($B$11:$F$11)*('DATOS REFERENCIA'!$A$7/'DATOS REFERENCIA'!$B$9)+(SUM($B$12:$F$12)*'DATOS REFERENCIA'!$A$7/'DATOS REFERENCIA'!$B$9))*G21/$G$24 -> 492539.5238 | E29: =+(SUM($B$11:$F$11)*('DATOS REFERENCIA'!$A$7/'DATOS REFERENCIA'!$B$9)+(SUM($B$12:$F$12)*'DATOS REFERENCIA'!$A$7/'DATOS REFERENCIA'!$B$9))*G23/$G$24 -> 37475.83333
A30: 3 VERIFICAR CARGA | B30: No. de Viajes | C30: =+(SUM($B$11:$F$11)*('DATOS REFERENCIA'!$B$7/'DATOS REFERENCIA'!$B$9)+(SUM($B$12:$F$12)*'DATOS REFERENCIA'!$B$7/'DATOS REFERENCIA'!$B$9))*(G22/G24) -> 99043.27381 | D30: =+(SUM($B$11:$F$11)*('DATOS REFERENCIA'!$B$7/'DATOS REFERENCIA'!$B$9)+(SUM($B$12:$F$12)*'DATOS REFERENCIA'!$B$7/'DATOS REFERENCIA'!$B$9))*(G21/G24) -> 82089.92063 | E30: =+(SUM($B$11:$F$11)*('DATOS REFERENCIA'!$B$7/'DATOS REFERENCIA'!$B$9)+(SUM($B$12:$F$12)*'DATOS REFERENCIA'!$B$7/'DATOS REFERENCIA'!$B$9))*(G23/G24) -> 6245.972222
A31: 4 TRANSPORTAR CARGA | B31: Galones Consumidos | C31: =+(SUM($B$7:$F$7)*('DATOS REFERENCIA'!$G$13/'CALCULOS DE COSTOS'!$G$18))+(SUM($B$8:$F$8)*('DATOS REFERENCIA'!$G$13/'CALCULOS DE COSTOS'!$G$18))+(SUM($B$10:$F$10)*'DATOS REFERENCIA'!$G$13/'CALCULOS DE COSTOS'!$G$18)+(SUM($B$13:$F$13)*'DATOS REFERENCIA'!G13/'CALCULOS DE COSTOS'!$G$18)+((('DATOS REFERENCIA'!G13*$G$20)/$G$18)*'DATOS REFERENCIA'!$B$18)+((SUM($B$11:$F$11)*'DATOS REFERENCIA'!$C$7/'DATOS REFERENCIA'!$B$9)+(SUM($B$12:$F$12)*'DATOS REFERENCIA'!$C$7/'DATOS REFERENCIA'!$B$9)*G22/G24) -> 16616237.78 | D31: =+(SUM($B$7:$F$7)*('DATOS REFERENCIA'!G14/'CALCULOS DE COSTOS'!$G$18))+(SUM($B$8:$F$8)*('DATOS REFERENCIA'!G14/'CALCULOS DE COSTOS'!$G$18))+(SUM($B$10:$F$10)*'DATOS REFERENCIA'!G14/'CALCULOS DE COSTOS'!$G$18)+(SUM($B$13:$F$13)*'DATOS REFERENCIA'!G14/'CALCULOS DE COSTOS'!$G$18)+((('DATOS REFERENCIA'!G14*$G$20)/$G$18)*'DATOS REFERENCIA'!$B$18)+((SUM($B$11:$F$11)*'DATOS REFERENCIA'!$C$7/'DATOS REFERENCIA'!$B$9)+(SUM($B$12:$F$12)*'DATOS REFERENCIA'!$C$7/'DATOS REFERENCIA'!$B$9)*G21/G24) -> 1590378.319 | E31: =+(SUM($B$7:$F$7)*('DATOS REFERENCIA'!$G$12/'CALCULOS DE COSTOS'!$G$18))+(SUM($B$8:$F$8)*('DATOS REFERENCIA'!$G$12/'CALCULOS DE COSTOS'!$G$18))+(SUM($B$10:$F$10)*'DATOS REFERENCIA'!$G$12/'CALCULOS DE COSTOS'!$G$18)+(SUM($B$13:$F$13)*'DATOS REFERENCIA'!G12/'CALCULOS DE COSTOS'!$G$18)+((('DATOS REFERENCIA'!I13*$G$20)/$G$18)*'DATOS REFERENCIA'!$B$18)+((SUM($B$11:$F$11)*'DATOS REFERENCIA'!$C$7/'DATOS REFERENCIA'!$B$9)+(SUM($B$12:$F$12)*'DATOS REFERENCIA'!$C$7/'DATOS REFERENCIA'!$B$9)*G23/G24) -> 481628.3544 | F31: =+(SUM($B$7:$F$7)*('DATOS REFERENCIA'!$G$15/'CALCULOS DE COSTOS'!$G$18))+(SUM($B$8:$F$8)*('DATOS REFERENCIA'!$G$15/'CALCULOS DE COSTOS'!$G$18))+(SUM($B$10:$F$10)*'DATOS REFERENCIA'!$G$15/'CALCULOS DE COSTOS'!$G$18)+(SUM($B$13:$F$13)*'DATOS REFERENCIA'!G15/'CALCULOS DE COSTOS'!$G$18)+((('DATOS REFERENCIA'!G15*$G$20)/$G$18)*'DATOS REFERENCIA'!$B$18) -> 416093.6496
A32: 5 DESCARGAR CARGA | B32: No. de Viajes | C32: =+(SUM($B$11:$F$11)*('DATOS REFERENCIA'!$A$7/'DATOS REFERENCIA'!$B$9)+(SUM($B$12:$F$12)*'DATOS REFERENCIA'!$A$7/'DATOS REFERENCIA'!$B$9))*('CALCULOS DE COSTOS'!G22/'CALCULOS DE COSTOS'!G24) -> 594259.6429 | D32: =+(SUM($B$11:$F$11)*('DATOS REFERENCIA'!$A$7/'DATOS REFERENCIA'!$B$9)+(SUM($B$12:$F$12)*'DATOS REFERENCIA'!$A$7/'DATOS REFERENCIA'!$B$9))*G21/$G$24 -> 492539.5238 | E32: =+(SUM($B$11:$F$11)*('DATOS REFERENCIA'!$A$7/'DATOS REFERENCIA'!$B$9)+(SUM($B$12:$F$12)*'DATOS REFERENCIA'!$A$7/'DATOS REFERENCIA'!$B$9))*G23/$G$24 -> 37475.83333
A33: 6 ENTREGAR REMISIONES | B33: No. de Viajes | C33: =(+SUM($B$6:$F$6)+SUM($B$9:$F$9)+(SUM($B$11:$F$11)*'DATOS REFERENCIA'!$E$7/'DATOS REFERENCIA'!$B$9)+(SUM($B$12:$F$12)*'DATOS REFERENCIA'!$E$7/'DATOS REFERENCIA'!$B$9))*G22/G24 -> 3555559.488 | D33: =(+SUM($B$6:$F$6)+SUM($B$9:$F$9)+(SUM($B$11:$F$11)*'DATOS REFERENCIA'!$E$7/'DATOS REFERENCIA'!$B$9)+(SUM($B$12:$F$12)*'DATOS REFERENCIA'!$E$7/'DATOS REFERENCIA'!$B$9))*G21/G24 -> 2946950.206 | E33: =(+SUM($B$6:$F$6)+SUM($B$9:$F$9)+(SUM($B$11:$F$11)*'DATOS REFERENCIA'!$E$7/'DATOS REFERENCIA'!$B$9)+(SUM($B$12:$F$12)*'DATOS REFERENCIA'!$E$7/'DATOS REFERENCIA'!$B$9))*G23/G24 -> 224224.4722
C34: =SUM(C28:C33) -> 23311209.83 | D34: =SUM(D28:D33) -> 7139364.161 | E34: =SUM(E28:E33) -> 903833.7988
A36: COSTO VIAJE LOCAL | B36: =+D34/G21 -> 77601.78436
A37: COSTO VIAJE CARTAGENA | B37: =+C34/G22 -> 210010.8994
A38: COSTO VIAJE SANTA MARTA | B38: =+E34/G23 -> 129119.1141

Sheet CALCULOS DE COSTOS vehiculo
A1: MENU PRINCIPAL | C1: COSTOS FIJOS | E1: COSTOS VARIABLES | H1: DATOS DE REFERENCIA | U1: COSTOS VARIABLES | X1: CALCULO DE COSTOS
B3: SPH-289 | C3: STL-357 | D3: SXZ-985 | E3: UYU-809 | F3: UZC-663
A4: COMBUSTIBLE | B4: =+SUMIF('COSTOS VARIABLES'!C:C,"ACPM",'COSTOS VARIABLES'!E:E) -> 2765487 | C4: =+SUMIF('COSTOS VARIABLES'!I:I,"ACPM",'COSTOS VARIABLES'!K:K) -> 2616431 | D4: =+SUMIF('COSTOS VARIABLES'!O:O,"ACPM",'COSTOS VARIABLES'!Q:Q) -> 3009903 | E4: =+SUMIF('COSTOS VARIABLES'!U:U,"ACPM",'COSTOS VARIABLES'!W:W) -> 2971558 | F4: =+SUMIF('COSTOS VARIABLES'!AA:AA,"ACPM",'COSTOS VARIABLES'!AC:AC) -> 2863107
A5: COMISIONES | B5: =+SUMIF('COSTOS VARIABLES'!C:C,"COMISION TRABAJADOR",'COSTOS VARIABLES'!E:E) -> 1068000 | C5: =+SUMIF('COSTOS VARIABLES'!I:I,"COMISION TRABAJADOR",'COSTOS VARIABLES'!K:K) -> 946000 | D5: =+SUMIF('COSTOS VARIABLES'!O:O,"COMISION TRABAJADOR",'COSTOS VARIABLES'!Q:Q) -> 996000 | E5: =+SUMIF('COSTOS VARIABLES'!U:U,"COMISION TRABAJADOR",'COSTOS VARIABLES'!W:W) -> 1082000 | F5: =+SUMIF('COSTOS VARIABLES'!AA:AA,"COMISION TRABAJADOR",'COSTOS VARIABLES'!AC:AC) -> 945000
A6: LUBRICANTES | B6: =+SUMIF('COSTOS VARIABLES'!C:C,"CAMBIO ACEITE",'COSTOS VARIABLES'!E:E) -> 288600 | C6: =+SUMIF('COSTOS VARIABLES'!I:I,"CAMBIO ACEITE",'COSTOS VARIABLES'!K:K) -> 131500 | D6: =+SUMIF('COSTOS VARIABLES'!O:O,"CAMBIO ACEITE",'COSTOS VARIABLES'!Q:Q) -> 172800 | E6: =+SUMIF('COSTOS VARIABLES'!U:U,"CAMBIO ACEITE",'COSTOS VARIABLES'!W:W) -> 163600 | F6: =+SUMIF('COSTOS VARIABLES'!AA:AA,"CAMBIO ACEITE",'COSTOS VARIABLES'!AC:AC) -> 294900
A7: LLANTAS | B7: =+SUMIF('COSTOS VARIABLES'!C:C,"LLANTAS",'COSTOS VARIABLES'!E:E) -> 852500 | C7: =+SUMIF('COSTOS VARIABLES'!I:I,"LLANTAS",'COSTOS VARIABLES'!K:K) -> 94000 | D7: =+SUMIF('COSTOS VARIABLES'!O:O,"LLANTAS",'COSTOS VARIABLES'!Q:Q) -> 0 | E7: =+SUMIF('COSTOS VARIABLES'!U:U,"LLANTAS",'COSTOS VARIABLES'!W:W) -> 0 | F7: =+SUMIF('COSTOS VARIABLES'!AA:AA,"LLANTAS",'COSTOS VARIABLES'!AC:AC) -> 0
A8: ADMINISTRATIVOS | B8: =+SUMIF('COSTOS VARIABLES'!C:C,"COMISION NEIDA SALGADO",'COSTOS VARIABLES'!E:E)+SUMIF('COSTOS VARIABLES'!C:C,"SERVICIOS PRESTADOS HEIDY BARRIOS",'COSTOS VARIABLES'!E:E)+SUMIF('COSTOS VARIABLES'!C:C,"OTROS",'COSTOS VARIABLES'!E:E)+SUMIF('COSTOS VARIABLES'!C:C,"PAGO SATELITAL",'COSTOS VARIABLES'!E:E) -> 515831 | C8: =+SUMIF('COSTOS VARIABLES'!I:I,"COMISION NEIDA SALGADO",'COSTOS VARIABLES'!K:K)+SUMIF('COSTOS VARIABLES'!I:I,"SERVICIOS PRESTADOS HEIDY BARRIOS",'COSTOS VARIABLES'!K:K)+SUMIF('COSTOS VARIABLES'!I:I,"OTROS",'COSTOS VARIABLES'!K:K)+SUMIF('COSTOS VARIABLES'!I:I,"PAGO SATELITAL",'COSTOS VARIABLES'!K:K) -> 384031 | D8: =+SUMIF('COSTOS VARIABLES'!O:O,"COMISION NEIDA SALGADO",'COSTOS VARIABLES'!Q:Q)+SUMIF('COSTOS VARIABLES'!O:O,"SERVICIOS PRESTADOS HEIDY BARRIOS",'COSTOS VARIABLES'!Q:Q)+SUMIF('COSTOS VARIABLES'!O:O,"OTROS",'COSTOS VARIABLES'!Q:Q)+SUMIF('COSTOS VARIABLES'!O:O,"PAGO SATELITAL",'COSTOS VARIABLES'!Q:Q) -> 130831 | E8: =+SUMIF('COSTOS VARIABLES'!U:U,"COMISION NEIDA SALGADO",'COSTOS VARIABLES'!W:W)+SUMIF('COSTOS VARIABLES'!U:U,"SERVICIOS PRESTADOS HEIDY BARRIOS",'COSTOS VARIABLES'!W:W)+SUMIF('COSTOS VARIABLES'!U:U,"OTROS",'COSTOS VARIABLES'!W:W)+SUMIF('COSTOS VARIABLES'!U:U,"PAGO SATELITAL",'COSTOS VARIABLES'!W:W) -> 90831 | F8: =+SUMIF('COSTOS VARIABLES'!AA:AA,"COMISION NEIDA SALGADO",'COSTOS VARIABLES'!AC:AC)+SUMIF('COSTOS VARIABLES'!AA:AA,"SERVICIOS PRESTADOS HEIDY BARRIOS",'COSTOS VARIABLES'!AC:AC)+SUMIF('COSTOS VARIABLES'!AA:AA,"OTROS",'COSTOS VARIABLES'!AC:AC)+SUMIF('COSTOS VARIABLES'!AA:AA,"PAGO SATELITAL",'COSTOS VARIABLES'!AC:AC) -> 380831
A9: FILTROS | B9: =+SUMIF('COSTOS VARIABLES'!C:C,"FILTRO",'COSTOS VARIABLES'!E:E) -> 0 | C9: =+SUMIF('COSTOS VARIABLES'!I:I,"FILTRO",'COSTOS VARIABLES'!K:K) -> 0 | D9: =+SUMIF('COSTOS VARIABLES'!O:O,"FILTRO",'COSTOS VARIABLES'!Q:Q) -> 146209 | E9: =+SUMIF('COSTOS VARIABLES'!U:U,"FILTRO",'COSTOS VARIABLES'!W:W) -> 0 | F9: =+SUMIF('COSTOS VARIABLES'!AA:AA,"FILTRO",'COSTOS VARIABLES'!AC:AC) -> 0
A10: SEGUROS, PARQUEADERO, IMPUESTOS | B10: =+SUMIF('COSTOS VARIABLES'!C:C,"lavado y parqueo",'COSTOS VARIABLES'!E:E) -> 140000 | C10: =+SUMIF('COSTOS VARIABLES'!I:I,"lavado y parqueo",'COSTOS VARIABLES'!K:K) -> 140000 | D10: =+SUMIF('COSTOS VARIABLES'!O:O,"lavado y parqueo",'COSTOS VARIABLES'!Q:Q) -> 140000 | E10: =+SUMIF('COSTOS VARIABLES'!U:U,"lavado y parqueo",'COSTOS VARIABLES'!W:W) -> 140000 | F10: =+SUMIF('COSTOS VARIABLES'!AA:AA,"lavado y parqueo",'COSTOS VARIABLES'!AC:AC) -> 140000
A11: SALARIOS | B11: =+SUMIF('COSTOS VARIABLES'!C:C,"SALARIO",'COSTOS VARIABLES'!E:E)+SUMIF('COSTOS VARIABLES'!C:C,"SEGURIDAD SOCIAL",'COSTOS VARIABLES'!E:E) -> 776600 | C11: =+SUMIF('COSTOS VARIABLES'!I:I,"SALARIO",'COSTOS VARIABLES'!K:K)+SUMIF('COSTOS VARIABLES'!I:I,"SEGURIDAD SOCIAL",'COSTOS VARIABLES'!K:K) -> 730700 | D11: =+SUMIF('COSTOS VARIABLES'!O:O,"SALARIO",'COSTOS VARIABLES'!Q:Q)+SUMIF('COSTOS VARIABLES'!O:O,"SEGURIDAD SOCIAL",'COSTOS VARIABLES'!Q:Q) -> 776600 | E11: =+SUMIF('COSTOS VARIABLES'!U:U,"SALARIO",'COSTOS VARIABLES'!W:W)+SUMIF('COSTOS VARIABLES'!U:U,"SEGURIDAD SOCIAL",'COSTOS VARIABLES'!W:W) -> 798200 | F11: =+SUMIF('COSTOS VARIABLES'!AA:AA,"SALARIO",'COSTOS VARIABLES'!AC:AC)+SUMIF('COSTOS VARIABLES'!AA:AA,"SEGURIDAD SOCIAL",'COSTOS VARIABLES'!AC:AC) -> 715000
A12: MANTENIMIENTO | B12: =+SUMIF('COSTOS VARIABLES'!C:C,"MANTENIMIENTO",'COSTOS VARIABLES'!E:E) -> 143000 | C12: =+SUMIF('COSTOS VARIABLES'!I:I,"MANTENIMIENTO",'COSTOS VARIABLES'!K:K) -> 23001 | D12: =+SUMIF('COSTOS VARIABLES'!O:O,"MANTENIMIENTO",'COSTOS VARIABLES'!Q:Q) -> 0 | E12: =+SUMIF('COSTOS VARIABLES'!U:U,"MANTENIMIENTO",'COSTOS VARIABLES'!W:W) -> 210000 | F12: =+SUMIF('COSTOS VARIABLES'!AA:AA,"MANTENIMIENTO",'COSTOS VARIABLES'!AC:AC) -> 538820
A13: PEAJES | B13: =+SUMIF('COSTOS VARIABLES'!C:C,"CARTAGENA PEAJE",'COSTOS VARIABLES'!E:E) -> 565400 | C13: =+SUMIF('COSTOS VARIABLES'!I:I,"CARTAGENA PEAJE",'COSTOS VARIABLES'!K:K)+SUMIF('COSTOS VARIABLES'!I:I,"SANTA MARTA PEAJE",'COSTOS VARIABLES'!K:K) -> 503200 | D13: =+SUMIF('COSTOS VARIABLES'!O:O,"CARTAGENA PEAJE",'COSTOS VARIABLES'!Q:Q)+SUMIF('COSTOS VARIABLES'!O:O,"SANTA MARTA PEAJE",'COSTOS VARIABLES'!Q:Q) -> 591400 | E13: =+SUMIF('COSTOS VARIABLES'!U:U,"CARTAGENA PEAJE",'COSTOS VARIABLES'!W:W)+SUMIF('COSTOS VARIABLES'!U:U,"SANTA MARTA PEAJE",'COSTOS VARIABLES'!W:W) -> 992200 | F13: =+SUMIF('COSTOS VARIABLES'!AA:AA,"CARTAGENA PEAJE",'COSTOS VARIABLES'!AC:AC)+SUMIF('COSTOS VARIABLES'!AA:AA,"SANTA MARTA PEAJE",'COSTOS VARIABLES'!AC:AC) -> 851300
B16: SPH-289 | C16: STL-357 | D16: SXZ-985 | E16: UYU-809 | F16: UZC-663 | G16: TOTAL
A17: KILOMETROS RECORRIDOS | B17: 8187.6 | C17: 7378.8 | D17: 7990.7 | E17: 7513.1 | F17: 7879.7 | G17: =SUM(B17:F17) -> 38949.9
A18: No. DE HORAS | B18: 372.48 | C18: 361.91 | D18: 362.91 | E18: 393.41 | F18: 382.5 | G18: =SUM(B18:F18) -> 1873.21
A19: CANTIDAD DE GALONES CONSUMIDOS | B19: 350.9608161 | C19: 332.0445039 | D19: 381.9790197 | E19: 377.1127547 | F19: 363.3495183 | G19: 1805.446613
A20: No. VIAJES LOCAL | B20: 31 | C20: 28 | D20: 23 | E20: 10 | F20: 0 | G20: =SUM(B20:F20) -> 92
A21: No. VIAJES CARTAGENA | B21: 24 | C21: 21 | D21: 22 | E21: 18 | F21: 26 | G21: =SUM(B21:F21) -> 111
A22: NO. VIAJES SANTA MARTA | B22: 0 | C22: 0 | D22: 1 | E22: 6 | F22: 0 | G22: =SUM(B22:F22) -> 7
A23: No. DE VIAJES | B23: =SUM(B20:B22) -> 55 | C23: =SUM(C20:C22) -> 49 | D23: 46 | E23: 34 | F23: 26 | G23: =SUM(B23:F23) -> 210
A26: RECURSOS | C26: VEHICULO SPH-289
A27: ACTIVIDAD | B27: CONDUCTOR | C27: CARTAGENA | D27: LOCAL | E27: SANTA MARTA | F27: RECORRIDOS INTERNOS
A28: 1 PLANEAR RUTA DE ENTREGA | B28: No. de Viajes | C28: =+B13*($B$21/$B$23) -> 246720 | D28: =+(B13)*(B20/B23) -> 318680 | E28: =+(B13)*(B22/$B$23) -> 0
A29: 2 CARGAR CAMION | B29: No. de Viajes | C29: =+(SUM($B$10)*('DATOS REFERENCIA'!$A$7/'DATOS REFERENCIA'!$B$9)+(SUM($B$11)*'DATOS REFERENCIA'!$A$7/'DATOS REFERENCIA'!$B$9))*($B$21/$B$23) -> 99992.72727 | D29: =+(B10)*('DATOS REFERENCIA'!$A$7/'DATOS REFERENCIA'!$B$9)+(B11*'DATOS REFERENCIA'!$A$7/'DATOS REFERENCIA'!$B$9)*B20/$B$23 -> 144430 | E29: =+((B10)*('DATOS REFERENCIA'!$A$7/'DATOS REFERENCIA'!$B$9)+(SUM(B11)*'DATOS REFERENCIA'!$A$7/'DATOS REFERENCIA'!$B$9))*B22/$B$23 -> 0
A30: 3 VERIFICAR CARGA | B30: No. de Viajes | C30: =+(($B$10)*('DATOS REFERENCIA'!$B$7/'DATOS REFERENCIA'!$B$9)+($B$11*'DATOS REFERENCIA'!$B$7/'DATOS REFERENCIA'!$B$9))*($B$21/$B$23) -> 16665.45455 | D30: =+(SUM($B$10)*('DATOS REFERENCIA'!$B$7/'DATOS REFERENCIA'!$B$9)+(SUM($B$11)*'DATOS REFERENCIA'!$B$7/'DATOS REFERENCIA'!$B$9))*($B$20/$B$23) -> 21526.21212 | E30: =+(SUM($B$10)*('DATOS REFERENCIA'!$B$7/'DATOS REFERENCIA'!$B$9)+(SUM($B$11)*'DATOS REFERENCIA'!$B$7/'DATOS REFERENCIA'!$B$9))*($B$22/$B$23) -> 0
A31: 4 TRANSPORTAR CARGA | B31: Galones Consumidos | C31: =+(SUM($B$6)*('DATOS REFERENCIA'!$B$13/$B$17))+(SUM($B$7)*('DATOS REFERENCIA'!$B$13/$B$17))+(SUM($B$9)*'DATOS REFERENCIA'!$B$13/$B$17)+(SUM($B$10)*'DATOS REFERENCIA'!$B$13/$B$17)+((('DATOS REFERENCIA'!$B$13*$B$19)/$B$17)*'DATOS REFERENCIA'!$B$18)+((SUM($B$10)*'DATOS REFERENCIA'!$C$7/'DATOS REFERENCIA'!$B$9)+(SUM($B$11)*'DATOS REFERENCIA'!$C$7/'DATOS REFERENCIA'!$B$9))*($B$21/$B$23) -> 3955301.031 | D31: =+(SUM($B$6)*('DATOS REFERENCIA'!$B$14/$B$17))+(SUM($B$7)*('DATOS REFERENCIA'!$B$14/$B$17))+(SUM($B$9)*'DATOS REFERENCIA'!$B$14/$B$17)+(SUM($B$12)*'DATOS REFERENCIA'!$B$14/$B$17)+((('DATOS REFERENCIA'!$B$14*$B$19)/$B$17)*'DATOS REFERENCIA'!$B$18)+((SUM($B$10)*'DATOS REFERENCIA'!$C$7/'DATOS REFERENCIA'!$B$9)+(SUM($B$11)*'DATOS REFERENCIA'!$C$7/'DATOS REFERENCIA'!$B$9))*($B$20/$B$23) -> 430066.9033 | E31: =+(SUM($B$6)*('DATOS REFERENCIA'!$B$12/$B$19))+(SUM($B$7)*('DATOS REFERENCIA'!$B$12/$B$19))+(SUM($B$9)*'DATOS REFERENCIA'!$B$12/$B$19)+(SUM($B$12)*'DATOS REFERENCIA'!$B$12/$B$19)+((('DATOS REFERENCIA'!$B$12*$B$19)/$B$17)*'DATOS REFERENCIA'!$B$18)+((SUM($B$10)*'DATOS REFERENCIA'!$C$7/'DATOS REFERENCIA'!$B$9)+(SUM($B$11)*'DATOS REFERENCIA'!$C$7/'DATOS REFERENCIA'!$B$9))*($B$22/$B$23) -> 0 | F31: =+(SUM($B$6)*('DATOS REFERENCIA'!$B$15/'CALCULOS DE COSTOS vehiculo'!$B$17))+(SUM($B$7)*('DATOS REFERENCIA'!$B$15/'CALCULOS DE COSTOS vehiculo'!$B$17))+(SUM($B$9)*'DATOS REFERENCIA'!$B$15/'CALCULOS DE COSTOS vehiculo'!$B$17)+(SUM($B$12)*'DATOS REFERENCIA'!$B$15/'CALCULOS DE COSTOS vehiculo'!$B$17)+((('DATOS REFERENCIA'!$B$15*$B$19)/$B$17)*'DATOS REFERENCIA'!$B$18) -> 43326.96043
A32: 5 DESCARGAR CARGA | B32: No. de Viajes | C32: =+(SUM($B$10)*('DATOS REFERENCIA'!$A$7/'DATOS REFERENCIA'!$B$9)+(SUM($B$11)*'DATOS REFERENCIA'!$A$7/'DATOS REFERENCIA'!$B$9))*('CALCULOS DE COSTOS vehiculo'!$B$21/'CALCULOS DE COSTOS vehiculo'!$B$23) -> 99992.72727 | D32: =+(SUM($B$10)*('DATOS REFERENCIA'!$A$7/'DATOS REFERENCIA'!$B$9)+(SUM($B$11)*'DATOS REFERENCIA'!$A$7/'DATOS REFERENCIA'!$B$9))*($B$20/$B$23) -> 129157.2727 | E32: =+(SUM($B$10)*('DATOS REFERENCIA'!$A$7/'DATOS REFERENCIA'!$B$9)+(SUM($B$11)*'DATOS REFERENCIA'!$A$7/'DATOS REFERENCIA'!$B$9))*$B$22/$B$23 -> 0
A33: 6 ENTREGAR REMISIONES | B33: No. de Viajes | C33: =(+SUM($B$5)+SUM($B$8)+(SUM($B$10)*'DATOS REFERENCIA'!$E$7/'DATOS REFERENCIA'!$B$9)+(SUM($B$11)*'DATOS REFERENCIA'!$E$7/'DATOS REFERENCIA'!$B$9))*($B$21/$B$23) -> 707791.7091 | D33: =(+SUM($B$5)+SUM($B$8)+(SUM($B$10)*'DATOS REFERENCIA'!$E$7/'DATOS REFERENCIA'!$B$9)+(SUM($B$11)*'DATOS REFERENCIA'!$E$7/'DATOS REFERENCIA'!$B$9))*($B$20/$B$23) -> 914230.9576 | E33: =(+SUM($B$5)+SUM($B$8)+(SUM($B$10)*'DATOS REFERENCIA'!$E$7/'DATOS REFERENCIA'!$B$9)+(SUM($B$11)*'DATOS REFERENCIA'!$E$7/'DATOS REFERENCIA'!$B$9))*($B$22/$B$23) -> 0
C34: =SUM(C28:C33) -> 5126463.649 | D34: =SUM(D28:D33) -> 1958091.346 | E34: =SUM(E28:E33) -> 0
A36: COSTO VIAJE LOCAL | B36: =+$D$34/$B$20 -> 63164.23696
A37: COSTO VIAJE CARTAGENA | B37: =+C34/B21 -> 213602.6521
A38: COSTO VIAJE SANTA MARTA | B38: =+E34/B22 -> 
A41: RECURSOS | C41: VEHICULO STL-357
A43: ACTIVIDAD | B43: CONDUCTOR | C43: CARTAGENA | D43: LOCAL | E43: SANTA MARTA | F43: RECORRIDOS INTERNOS
A44: 1 PLANEAR RUTA DE ENTREGA | B44: No. de Viajes | C44: =+$C$13*($C$21/$C$23) -> 215657.1429 | D44: =+($C$13)*($C$20/$C$23) -> 287542.8571 | E44: =+($C$13)*($C$22/$C$23) -> 0
A45: 2 CARGAR CAMION | B45: No. de Viajes | C45: =+(SUM($C$10)*('DATOS REFERENCIA'!$A$7/'DATOS REFERENCIA'!$B$9)+(SUM($C$11)*'DATOS REFERENCIA'!$A$7/'DATOS REFERENCIA'!$B$9))*($C$21/$C$23) -> 93289.28571 | D45: =+(SUM($C$10)*('DATOS REFERENCIA'!$A$7/'DATOS REFERENCIA'!$B$9)+(SUM($C$11)*'DATOS REFERENCIA'!$A$7/'DATOS REFERENCIA'!$B$9))*($C$20/$C$23) -> 124385.7143 | E45: =+(SUM($C$10)*('DATOS REFERENCIA'!$A$7/'DATOS REFERENCIA'!$B$9)+(SUM($C$11)*'DATOS REFERENCIA'!$A$7/'DATOS REFERENCIA'!$B$9))*($C$22/$C$23) -> 0
A46: 3 VERIFICAR CARGA | B46: No. de Viajes | C46: =+(($B$10)*('DATOS REFERENCIA'!$B$7/'DATOS REFERENCIA'!$B$9)+($B$11*'DATOS REFERENCIA'!$B$7/'DATOS REFERENCIA'!$B$9))*($C$21/$C$23) -> 16367.85714 | D46: =+(SUM($C$10)*('DATOS REFERENCIA'!$B$7/'DATOS REFERENCIA'!$B$9)+(SUM($C$11)*'DATOS REFERENCIA'!$B$7/'DATOS REFERENCIA'!$B$9))*($C$20/$C$23) -> 20730.95238 | E46: =+(SUM($C$10)*('DATOS REFERENCIA'!$B$7/'DATOS REFERENCIA'!$B$9)+(SUM($C$11)*'DATOS REFERENCIA'!$B$7/'DATOS REFERENCIA'!$B$9))*($C$22/$C$23) -> 0
A47: 4 TRANSPORTAR CARGA | B47: Galones Consumidos | C47: =+(SUM($C$6)*('DATOS REFERENCIA'!$C$13/$C$17))+(SUM($C$7)*('DATOS REFERENCIA'!$C$13/$C$17))+(SUM($C$9)*'DATOS REFERENCIA'!$C$13/$C$17)+(SUM($C$10)*'DATOS REFERENCIA'!$C$13/$C$17)+((('DATOS REFERENCIA'!$C$13*$C$19)/$C$17)*'DATOS REFERENCIA'!$B$18)+((SUM($C$10)*'DATOS REFERENCIA'!$C$7/'DATOS REFERENCIA'!$B$9)+(SUM($C$11)*'DATOS REFERENCIA'!$C$7/'DATOS REFERENCIA'!$B$9))*($C$21/$C$23) -> 2886049.631 | D47: =+(SUM($C$6)*('DATOS REFERENCIA'!$C$14/$C$17))+(SUM($C$7)*('DATOS REFERENCIA'!$C$14/$C$17))+(SUM($C$9)*'DATOS REFERENCIA'!$C$14/$C$17)+(SUM($C$10)*'DATOS REFERENCIA'!$C$14/$C$17)+((('DATOS REFERENCIA'!$C$14*$C$19)/$C$17)*'DATOS REFERENCIA'!$B$18)+((SUM($C$10)*('DATOS REFERENCIA'!$C$7/'DATOS REFERENCIA'!$B$9))+((SUM($C$11)*('DATOS REFERENCIA'!$C$7/'DATOS REFERENCIA'!$B$9))))*($C$20/$C$23) -> 336345.4874 | E47: =+(SUM($C$6)*('DATOS REFERENCIA'!$C$12/$C$19))+(SUM($C$7)*('DATOS REFERENCIA'!$C$12/$C$19))+(SUM($C$9)*'DATOS REFERENCIA'!$C$12/$C$19)+(SUM($C$12)*'DATOS REFERENCIA'!$C$12/$C$19)+((('DATOS REFERENCIA'!$C$12*$C$19)/$C$17)*'DATOS REFERENCIA'!$B$18)+((SUM($C$10)*'DATOS REFERENCIA'!$C$7/'DATOS REFERENCIA'!$B$9)+(SUM($C$11)*'DATOS REFERENCIA'!$C$7/'DATOS REFERENCIA'!$B$9))*($C$22/$C$23) -> 0 | F47: =+(SUM($C$6)*('DATOS REFERENCIA'!$C$15/'CALCULOS DE COSTOS vehiculo'!$C$17))+(SUM($C$7)*('DATOS REFERENCIA'!$C$15/'CALCULOS DE COSTOS vehiculo'!$C$17))+(SUM($C$9)*'DATOS REFERENCIA'!$C$15/'CALCULOS DE COSTOS vehiculo'!$C$17)+(SUM($C$11)*'DATOS REFERENCIA'!$C$15/'CALCULOS DE COSTOS vehiculo'!$C$17)+((('DATOS REFERENCIA'!$C$15*$C$19)/$C$17)*'DATOS REFERENCIA'!$B$18) -> 146559.7934
A48: 5 DESCARGAR CARGA | B48: No. de Viajes | C48: =+(SUM($C$10)*('DATOS REFERENCIA'!$A$7/'DATOS REFERENCIA'!$B$9)+(SUM($C$11)*'DATOS REFERENCIA'!$A$7/'DATOS REFERENCIA'!$B$9))*('CALCULOS DE COSTOS vehiculo'!$C$21/'CALCULOS DE COSTOS vehiculo'!$C$23) -> 93289.28571 | D48: =+(SUM($C$10)*('DATOS REFERENCIA'!$A$7/'DATOS REFERENCIA'!$B$9)+(SUM($C$11)*'DATOS REFERENCIA'!$A$7/'DATOS REFERENCIA'!$B$9))*($C$20/$C$23) -> 124385.7143 | E48: =+(SUM($C$10)*('DATOS REFERENCIA'!$A$7/'DATOS REFERENCIA'!$B$9)+(SUM($C$11)*'DATOS REFERENCIA'!$A$7/'DATOS REFERENCIA'!$B$9))*$C$22/$C$23 -> 0
A49: 6 ENTREGAR REMISIONES | B49: No. de Viajes | C49: =(+SUM($C$5)+SUM($C$8)+(SUM($C$10)*'DATOS REFERENCIA'!$E$7/'DATOS REFERENCIA'!$B$9)+(SUM($C$11)*'DATOS REFERENCIA'!$E$7/'DATOS REFERENCIA'!$B$9))*($C$21/$C$23) -> 585561.5 | D49: =(+SUM($C$5)+SUM($C$8)+(SUM($C$10)*'DATOS REFERENCIA'!$E$7/'DATOS REFERENCIA'!$B$9)+(SUM($C$11)*'DATOS REFERENCIA'!$E$7/'DATOS REFERENCIA'!$B$9))*($C$20/$C$23) -> 780748.6667 | E49: =(+SUM($C$5)+SUM($C$8)+(SUM($C$10)*'DATOS REFERENCIA'!$E$7/'DATOS REFERENCIA'!$B$9)+(SUM($C$11)*'DATOS REFERENCIA'!$E$7/'DATOS REFERENCIA'!$B$9))*($C$22/$C$23) -> 0
C50: =SUM(C44:C49) -> 3890214.702 | D50: =SUM(D44:D49) -> 1674139.392 | E50: =SUM(E44:E49) -> 0
A52: COSTO VIAJE LOCAL | B52: =+$D$50/$C$20 -> 59790.69258
A53: COSTO VIAJE CARTAGENA | B53: =+$C$50/$C$21 -> 185248.3192
A54: COSTO VIAJE SANTA MARTA | B54: =+E50/I34 -> 
A56: RECURSOS | C56: VEHICULO 3
A58: ACTIVIDAD | B58: CONDUCTOR | C58: CARTAGENA | D58: LOCAL | E58: SANTA MARTA | F58: RECORRIDOS INTERNOS
A59: 1 PLANEAR RUTA DE ENTREGA | B59: No. de Viajes | C59: =+$D$13*($D$21/$D$23) -> 282843.4783 | D59: =+($D$13)*($D$20/$D$23) -> 295700 | E59: =+($D$13)*($D$22/$D$23) -> 12856.52174
A60: 2 CARGAR CAMION | B60: No. de Viajes | C60: =+(SUM($D$10)*('DATOS REFERENCIA'!$A$7/'DATOS REFERENCIA'!$B$9)+(SUM($D$11)*'DATOS REFERENCIA'!$A$7/'DATOS REFERENCIA'!$B$9))*($D$21/$D$23) -> 109593.4783 | D60: =+(SUM($D$10)*('DATOS REFERENCIA'!$A$7/'DATOS REFERENCIA'!$B$9)+(SUM($D$11)*'DATOS REFERENCIA'!$A$7/'DATOS REFERENCIA'!$B$9))*($D$20/$D$23) -> 114575 | E60: =+(SUM($D$10)*('DATOS REFERENCIA'!$A$7/'DATOS REFERENCIA'!$B$9)+(SUM($D$11)*'DATOS REFERENCIA'!$A$7/'DATOS REFERENCIA'!$B$9))*($D$22/$D$23) -> 4981.521739
A61: 3 VERIFICAR CARGA | B61: No. de Viajes | C61: =+(($C$10)*('DATOS REFERENCIA'!$B$7/'DATOS REFERENCIA'!$B$9)+($C$11*'DATOS REFERENCIA'!$B$7/'DATOS REFERENCIA'!$B$9))*($D$21/$D$23) -> 17350.9058 | D61: =+(SUM($D$10)*('DATOS REFERENCIA'!$B$7/'DATOS REFERENCIA'!$B$9)+(SUM($D$11)*'DATOS REFERENCIA'!$B$7/'DATOS REFERENCIA'!$B$9))*($D$20/$D$23) -> 19095.83333 | E61: =+(SUM($D$10)*('DATOS REFERENCIA'!$B$7/'DATOS REFERENCIA'!$B$9)+(SUM($D$11)*'DATOS REFERENCIA'!$B$7/'DATOS REFERENCIA'!$B$9))*($D$22/$D$23) -> 830.2536232
A62: 4 TRANSPORTAR CARGA | B62: Galones Consumidos | C62: =+(SUM($D$6)*('DATOS REFERENCIA'!$D$13/$D$17))+(SUM($D$7)*('DATOS REFERENCIA'!$D$13/$D$17))+(SUM($D$9)*'DATOS REFERENCIA'!$D$13/$D$17)+(SUM($D$10)*'DATOS REFERENCIA'!$D$13/$D$17)+((('DATOS REFERENCIA'!$D$13*$D$19)/$D$17)*'DATOS REFERENCIA'!$B$18)+((SUM($D$10)*'DATOS REFERENCIA'!$C$7/'DATOS REFERENCIA'!$B$9)+(SUM($D$11)*'DATOS REFERENCIA'!$C$7/'DATOS REFERENCIA'!$B$9))*($D$21/$D$23) -> 3299931.68 | D62: =+(SUM($D$6)*('DATOS REFERENCIA'!$D$14/$D$17))+(SUM($D$7)*('DATOS REFERENCIA'!$D$14/$D$17))+(SUM($D$9)*'DATOS REFERENCIA'!$D$14/$D$17)+(SUM($D$10)*'DATOS REFERENCIA'!$D$14/$D$17)+((('DATOS REFERENCIA'!$D$14*$D$19)/$D$17)*'DATOS REFERENCIA'!$B$18)+((SUM($D$10)*('DATOS REFERENCIA'!$C$7/'DATOS REFERENCIA'!$B$9))+((SUM($D$11)*('DATOS REFERENCIA'!$C$7/'DATOS REFERENCIA'!$B$9))))*($D$20/$D$23) -> 356748.2507 | E62: =+(SUM($D$6)*('DATOS REFERENCIA'!$D$12/$D$19))+(SUM($D$7)*('DATOS REFERENCIA'!$D$12/$D$19))+(SUM($D$9)*'DATOS REFERENCIA'!$D$12/$D$19)+(SUM($D$12)*'DATOS REFERENCIA'!$D$12/$D$19)+((('DATOS REFERENCIA'!$D$12*$D$19)/$D$17)*'DATOS REFERENCIA'!$B$18)+((SUM($D$10)*'DATOS REFERENCIA'!$C$7/'DATOS REFERENCIA'!$B$9)+(SUM($D$11)*'DATOS REFERENCIA'!$C$7/'DATOS REFERENCIA'!$B$9))*($D$22/$D$23) -> 364336.3461 | F62: =+(SUM($D$6)*('DATOS REFERENCIA'!$D$15/'CALCULOS DE COSTOS vehiculo'!$D$17))+(SUM($D$7)*('DATOS REFERENCIA'!$D$15/'CALCULOS DE COSTOS vehiculo'!$D$17))+(SUM($D$9)*'DATOS REFERENCIA'!$D$15/'CALCULOS DE COSTOS vehiculo'!$D$17)+(SUM($D$11)*'DATOS REFERENCIA'!$D$15/'CALCULOS DE COSTOS vehiculo'!$D$17)+((('DATOS REFERENCIA'!$D$15*$D$19)/$D$17)*'DATOS REFERENCIA'!$B$18) -> 69001.49694
A63: 5 DESCARGAR CARGA | B63: No. de Viajes | C63: =+(SUM($D$10)*('DATOS REFERENCIA'!$A$7/'DATOS REFERENCIA'!$B$9)+(SUM($D$11)*'DATOS REFERENCIA'!$A$7/'DATOS REFERENCIA'!$B$9))*('CALCULOS DE COSTOS vehiculo'!$D$21/'CALCULOS DE COSTOS vehiculo'!$D$23) -> 109593.4783 | D63: =+(SUM($D$10)*('DATOS REFERENCIA'!$A$7/'DATOS REFERENCIA'!$B$9)+(SUM($D$11)*'DATOS REFERENCIA'!$A$7/'DATOS REFERENCIA'!$B$9))*($D$20/$D$23) -> 114575 | E63: =+(SUM($D$10)*('DATOS REFERENCIA'!$A$7/'DATOS REFERENCIA'!$B$9)+(SUM($D$11)*'DATOS REFERENCIA'!$A$7/'DATOS REFERENCIA'!$B$9))*$D$22/$D$23 -> 4981.521739
A64: 6 ENTREGAR REMISIONES | B64: No. de Viajes | C64: =(+SUM($D$5)+SUM($D$8)+(SUM($D$10)*'DATOS REFERENCIA'!$E$7/'DATOS REFERENCIA'!$B$9)+(SUM($D$11)*'DATOS REFERENCIA'!$E$7/'DATOS REFERENCIA'!$B$9))*($D$21/$D$23) -> 557184.7536 | D64: =(+SUM($D$5)+SUM($D$8)+(SUM($D$10)*'DATOS REFERENCIA'!$E$7/'DATOS REFERENCIA'!$B$9)+(SUM($D$11)*'DATOS REFERENCIA'!$E$7/'DATOS REFERENCIA'!$B$9))*($D$20/$D$23) -> 582511.3333 | E64: =(+SUM($D$5)+SUM($D$8)+(SUM($D$10)*'DATOS REFERENCIA'!$E$7/'DATOS REFERENCIA'!$B$9)+(SUM($D$11)*'DATOS REFERENCIA'!$E$7/'DATOS REFERENCIA'!$B$9))*($D$22/$D$23) -> 25326.57971
C65: =SUM(C59:C64) -> 4376497.774 | D65: =SUM(D59:D64) -> 1483205.417 | E65: =SUM(E59:E64) -> 413312.7446 | F65: =SUM(F59:F64) -> 69001.49694
A67: COSTO VIAJE LOCAL | B67: =$D$65/$D$20 -> 64487.19206
A68: COSTO VIAJE CARTAGENA | B68: =+$C$65/$D$21 -> 198931.717
A69: COSTO VIAJE SANTA MARTA | B69: =+$E$65/$D$22 -> 413312.7446
A72: RECURSOS | C72: VEHICULO 4
A74: ACTIVIDAD | B74: CONDUCTOR | C74: CARTAGENA | D74: LOCAL | E74: SANTA MARTA | F74: RECORRIDOS INTERNOS
A75: 1 PLANEAR RUTA DE ENTREGA | B75: No. de Viajes | C75: =+($E$13)*($E$21/$E$23) -> 525282.3529 | D75: =+($E$13)*($E$20/$E$23) -> 291823.5294 | E75: =+($E$13)*($E$22/$E$23) -> 175094.1176
A76: 2 CARGAR CAMION | B76: No. de Viajes | C76: =+(SUM($E$10)*('DATOS REFERENCIA'!$A$7/'DATOS REFERENCIA'!$B$9)+(SUM($E$11)*'DATOS REFERENCIA'!$A$7/'DATOS REFERENCIA'!$B$9))*($E$21/$E$23) -> 124173.5294 | D76: =+(SUM($E$10)*('DATOS REFERENCIA'!$A$7/'DATOS REFERENCIA'!$B$9)+(SUM($E$11)*'DATOS REFERENCIA'!$A$7/'DATOS REFERENCIA'!$B$9))*($E$20/$E$23) -> 68985.29412 | E76: =+(SUM($E$10)*('DATOS REFERENCIA'!$A$7/'DATOS REFERENCIA'!$B$9)+(SUM($E$11)*'DATOS REFERENCIA'!$A$7/'DATOS REFERENCIA'!$B$9))*($E$22/$E$23) -> 41391.17647
A77: 3 VERIFICAR CARGA | B77: No. de Viajes | C77: =+(($C$10)*('DATOS REFERENCIA'!$B$7/'DATOS REFERENCIA'!$B$9)+($C$11*'DATOS REFERENCIA'!$B$7/'DATOS REFERENCIA'!$B$9))*($D$21/$D$23) -> 17350.9058 | D77: =+(SUM($D$10)*('DATOS REFERENCIA'!$B$7/'DATOS REFERENCIA'!$B$9)+(SUM($D$11)*'DATOS REFERENCIA'!$B$7/'DATOS REFERENCIA'!$B$9))*($E$20/$E$23) -> 11232.84314 | E77: =+(SUM($D$10)*('DATOS REFERENCIA'!$B$7/'DATOS REFERENCIA'!$B$9)+(SUM($D$11)*'DATOS REFERENCIA'!$B$7/'DATOS REFERENCIA'!$B$9))*($E$22/$E$23) -> 6739.705882
A78: 4 TRANSPORTAR CARGA | B78: Galones Consumidos | C78: =+(SUM($E$6)*('DATOS REFERENCIA'!$E$13/$E$17))+(SUM($E$7)*('DATOS REFERENCIA'!$E$13/$E$17))+(SUM($E$9)*'DATOS REFERENCIA'!$E$13/$E$17)+(SUM($E$10)*'DATOS REFERENCIA'!$E$13/$E$17)+((('DATOS REFERENCIA'!$E$13*$E$19)/$E$17)*'DATOS REFERENCIA'!$B$18)+((SUM($E$10)*'DATOS REFERENCIA'!$C$7/'DATOS REFERENCIA'!$B$9)+(SUM($E$11)*'DATOS REFERENCIA'!$C$7/'DATOS REFERENCIA'!$B$9))*($E$21/$E$23) -> 2648753.545 | D78: =+(SUM($E$6)*('DATOS REFERENCIA'!$E$14/$E$17))+(SUM($E$7)*('DATOS REFERENCIA'!$E$14/$E$17))+(SUM($E$9)*'DATOS REFERENCIA'!$E$14/$E$17)+(SUM($E$10)*'DATOS REFERENCIA'!$E$14/$E$17)+((('DATOS REFERENCIA'!$E$14*$E$19)/$E$17)*'DATOS REFERENCIA'!$B$18)+((SUM($E$10)*('DATOS REFERENCIA'!$C$7/'DATOS REFERENCIA'!$B$9))+((SUM($E$11)*('DATOS REFERENCIA'!$C$7/'DATOS REFERENCIA'!$B$9))))*($E$20/$E$23) -> 214846.209 | E78: =+(SUM($E$6)*('DATOS REFERENCIA'!$E$12/$E$19))+(SUM($E$7)*('DATOS REFERENCIA'!$E$12/$E$19))+(SUM($E$9)*'DATOS REFERENCIA'!$E$12/$E$19)+(SUM($E$12)*'DATOS REFERENCIA'!$E$12/$E$19)+((('DATOS REFERENCIA'!$E$12*$E$19)/$E$17)*'DATOS REFERENCIA'!$B$18)+((SUM($E$10)*'DATOS REFERENCIA'!$C$7/'DATOS REFERENCIA'!$B$9)+(SUM($E$11)*'DATOS REFERENCIA'!$C$7/'DATOS REFERENCIA'!$B$9))*($E$22/$E$23) -> 2083829.947 | F78: =+(SUM($E$6)*('DATOS REFERENCIA'!$D$15/'CALCULOS DE COSTOS vehiculo'!$E$17))+(SUM($E$7)*('DATOS REFERENCIA'!$D$15/'CALCULOS DE COSTOS vehiculo'!$E$17))+(SUM($E$9)*'DATOS REFERENCIA'!$D$15/'CALCULOS DE COSTOS vehiculo'!$E$17)+(SUM($E$11)*'DATOS REFERENCIA'!$D$15/'CALCULOS DE COSTOS vehiculo'!$E$17)+((('DATOS REFERENCIA'!$D$15*$E$19)/$E$17)*'DATOS REFERENCIA'!$B$18) -> 70310.52154
A79: 5 DESCARGAR CARGA | B79: No. de Viajes | C79: =+(SUM($E$10)*('DATOS REFERENCIA'!$A$7/'DATOS REFERENCIA'!$B$9)+(SUM($E$11)*'DATOS REFERENCIA'!$A$7/'DATOS REFERENCIA'!$B$9))*('CALCULOS DE COSTOS vehiculo'!$E$21/'CALCULOS DE COSTOS vehiculo'!$E$22) -> 703650 | D79: =+(SUM($D$10)*('DATOS REFERENCIA'!$A$7/'DATOS REFERENCIA'!$B$9)+(SUM($D$11)*'DATOS REFERENCIA'!$A$7/'DATOS REFERENCIA'!$B$9))*($E$20/$E$23) -> 67397.05882 | E79: =+(SUM($E$10)*('DATOS REFERENCIA'!$A$7/'DATOS REFERENCIA'!$B$9)+(SUM($E$11)*'DATOS REFERENCIA'!$A$7/'DATOS REFERENCIA'!$B$9))*$E$22/$E$23 -> 41391.17647
A80: 6 ENTREGAR REMISIONES | B80: No. de Viajes | C80: =(+SUM($E$5)+SUM($E$8)+(SUM($E$10)*'DATOS REFERENCIA'!$E$7/'DATOS REFERENCIA'!$B$9)+(SUM($E$11)*'DATOS REFERENCIA'!$E$7/'DATOS REFERENCIA'!$B$9))*($E$21/$E$23) -> 641606.1176 | D80: =(+SUM($E$5)+SUM($E$8)+(SUM($E$10)*'DATOS REFERENCIA'!$E$7/'DATOS REFERENCIA'!$B$9)+(SUM($E$11)*'DATOS REFERENCIA'!$E$7/'DATOS REFERENCIA'!$B$9))*($E$20/$E$23) -> 356447.8431 | E80: =(+SUM($E$5)+SUM($E$8)+(SUM($E$10)*'DATOS REFERENCIA'!$E$7/'DATOS REFERENCIA'!$B$9)+(SUM($E$11)*'DATOS REFERENCIA'!$E$7/'DATOS REFERENCIA'!$B$9))*($E$22/$E$23) -> 213868.7059
C81: =SUM(C75:C80) -> 4660816.451 | D81: =SUM(D75:D80) -> 1010732.778 | E81: =SUM(E75:E80) -> 2562314.829 | F81: =SUM(F75:F80) -> 70310.52154
A83: COSTO VIAJE LOCAL | B83: =+$D$81/$E$20 -> 101073.2778
A84: COSTO VIAJE CARTAGENA | B84: =+$C$81/$E$21 -> 258934.2473
A85: COSTO VIAJE SANTA MARTA | B85: =+$E$81/$E$22 -> 427052.4715
A87: RECURSOS | C87: VEHICULO 5
A89: ACTIVIDAD | B89: CONDUCTOR | C89: CARTAGENA | D89: LOCAL | E89: SANTA MARTA | F89: RECORRIDOS INTERNOS
A90: 1 PLANEAR RUTA DE ENTREGA | B90: No. de Viajes | C90: =+($F$13)*($F$21/$F$23) -> 851300 | D90: =+($F$13)*($F$20/$F$23) -> 0 | E90: =+($F$13)*($F$22/$F$23) -> 0
A91: 2 CARGAR CAMION | B91: No. de Viajes | C91: =+(SUM($F$10)*('DATOS REFERENCIA'!$A$7/'DATOS REFERENCIA'!$B$9)+(SUM($F$11)*'DATOS REFERENCIA'!$A$7/'DATOS REFERENCIA'!$B$9))*($F$21/$F$23) -> 213750 | D91: =+(SUM($F$10)*('DATOS REFERENCIA'!$A$7/'DATOS REFERENCIA'!$B$9)+(SUM($F$11)*'DATOS REFERENCIA'!$A$7/'DATOS REFERENCIA'!$B$9))*($F$20/$F$23) -> 0 | E91: =+(SUM($E$10)*('DATOS REFERENCIA'!$A$7/'DATOS REFERENCIA'!$B$9)+(SUM($E$11)*'DATOS REFERENCIA'!$A$7/'DATOS REFERENCIA'!$B$9))*($F$22/$F$23) -> 0
A92: 3 VERIFICAR CARGA | B92: No. de Viajes | C92: =+(($D$10)*('DATOS REFERENCIA'!$B$7/'DATOS REFERENCIA'!$B$9)+($D$11*'DATOS REFERENCIA'!$B$7/'DATOS REFERENCIA'!$B$9))*($F$21/$F$23) -> 38191.66667 | D92: =+(SUM($E$10)*('DATOS REFERENCIA'!$B$7/'DATOS REFERENCIA'!$B$9)+(SUM($E$11)*'DATOS REFERENCIA'!$B$7/'DATOS REFERENCIA'!$B$9))*($F$20/$F$23) -> 0 | E92: =+(SUM($E$10)*('DATOS REFERENCIA'!$B$7/'DATOS REFERENCIA'!$B$9)+(SUM($E$11)*'DATOS REFERENCIA'!$B$7/'DATOS REFERENCIA'!$B$9))*($F$22/$F$23) -> 0
A93: 4 TRANSPORTAR CARGA | B93: Galones Consumidos | C93: =+(SUM($F$6)*('DATOS REFERENCIA'!$F$13/$F$17))+(SUM($F$7)*('DATOS REFERENCIA'!$F$13/$F$17))+(SUM($F$9)*'DATOS REFERENCIA'!$F$13/$F$17)+(SUM($F$10)*'DATOS REFERENCIA'!$F$13/$F$17)+((('DATOS REFERENCIA'!$F$13*$F$19)/$F$17)*'DATOS REFERENCIA'!$B$18)+((SUM($F$10)*'DATOS REFERENCIA'!$C$7/'DATOS REFERENCIA'!$B$9)+(SUM($F$11)*'DATOS REFERENCIA'!$C$7/'DATOS REFERENCIA'!$B$9))*($F$21/$F$23) -> 3577286.622 | D93: =+(SUM($F$6)*('DATOS REFERENCIA'!$F$14/$F$17))+(SUM($F$7)*('DATOS REFERENCIA'!$F$14/$F$17))+(SUM($F$9)*'DATOS REFERENCIA'!$F$14/$F$17)+(SUM($F$10)*'DATOS REFERENCIA'!$F$14/$F$17)+((('DATOS REFERENCIA'!$F$14*$F$19)/$F$17)*'DATOS REFERENCIA'!$B$18)+((SUM($F$10)*('DATOS REFERENCIA'!$C$7/'DATOS REFERENCIA'!$B$9))+((SUM($F$11)*('DATOS REFERENCIA'!$C$7/'DATOS REFERENCIA'!$B$9))))*($F$20/$F$23) -> 0 | E93: =+(SUM($F$6)*('DATOS REFERENCIA'!$F$12/$F$19))+(SUM($F$7)*('DATOS REFERENCIA'!$F$12/$F$19))+(SUM($F$9)*'DATOS REFERENCIA'!$F$12/$F$19)+(SUM($F$12)*'DATOS REFERENCIA'!$F$12/$F$19)+((('DATOS REFERENCIA'!$F$12*$F$19)/$F$17)*'DATOS REFERENCIA'!$B$18)+((SUM($F$10)*'DATOS REFERENCIA'!$C$7/'DATOS REFERENCIA'!$B$9)+(SUM($F$11)*'DATOS REFERENCIA'!$C$7/'DATOS REFERENCIA'!$B$9))*($F$22/$F$23) -> 0 | F93: =+(SUM($F$6)*('DATOS REFERENCIA'!$E$15/'CALCULOS DE COSTOS vehiculo'!$F$17))+(SUM($F$7)*('DATOS REFERENCIA'!$D$15/'CALCULOS DE COSTOS vehiculo'!$F$17))+(SUM($F$9)*'DATOS REFERENCIA'!$D$15/'CALCULOS DE COSTOS vehiculo'!$F$17)+(SUM($F$11)*'DATOS REFERENCIA'!$D$15/'CALCULOS DE COSTOS vehiculo'!$F$17)+((('DATOS REFERENCIA'!$D$15*$F$19)/$F$17)*'DATOS REFERENCIA'!$B$18) -> 69558.65834
A94: 5 DESCARGAR CARGA | B94: No. de Viajes | C94: =+(SUM($F$10)*('DATOS REFERENCIA'!$A$7/'DATOS REFERENCIA'!$B$9)+(SUM($F$11)*'DATOS REFERENCIA'!$A$7/'DATOS REFERENCIA'!$B$9))*('CALCULOS DE COSTOS vehiculo'!$F$21/'CALCULOS DE COSTOS vehiculo'!$F$23) -> 213750 | D94: =+(SUM($E$10)*('DATOS REFERENCIA'!$A$7/'DATOS REFERENCIA'!$B$9)+(SUM($E$11)*'DATOS REFERENCIA'!$A$7/'DATOS REFERENCIA'!$B$9))*($F$20/$F$23) -> 0 | E94: =+(SUM($F$10)*('DATOS REFERENCIA'!$A$7/'DATOS REFERENCIA'!$B$9)+(SUM($F$11)*'DATOS REFERENCIA'!$A$7/'DATOS REFERENCIA'!$B$9))*$F$22/$F$23 -> 0
A95: 6 ENTREGAR REMISIONES | B95: No. de Viajes | C95: =(+SUM($F$5)+SUM($F$8)+(SUM($F$10)*'DATOS REFERENCIA'!$E$7/'DATOS REFERENCIA'!$B$9)+(SUM($F$11)*'DATOS REFERENCIA'!$E$7/'DATOS REFERENCIA'!$B$9))*($F$21/$F$23) -> 1361456 | D95: =(+SUM($F$5)+SUM($F$8)+(SUM($F$10)*'DATOS REFERENCIA'!$E$7/'DATOS REFERENCIA'!$B$9)+(SUM($F$11)*'DATOS REFERENCIA'!$E$7/'DATOS REFERENCIA'!$B$9))*($F$20/$F$23) -> 0 | E95: =(+SUM($F$5)+SUM($F$8)+(SUM($F$10)*'DATOS REFERENCIA'!$E$7/'DATOS REFERENCIA'!$B$9)+(SUM($F$11)*'DATOS REFERENCIA'!$E$7/'DATOS REFERENCIA'!$B$9))*($F$22/$F$23) -> 0
C96: =SUM(C90:C95) -> 6255734.289 | D96: =SUM(D90:D95) -> 0 | E96: =SUM(E90:E95) -> 0 | F96: =SUM(F90:F95) -> 69558.65834
A98: COSTO VIAJE LOCAL | B98: =+$D$96/$F$20 ->  | C98: =+C90+C75+C59+C44+C28 -> 2121802.974
A99: COSTO VIAJE CARTAGENA | B99: =+$C$96/$F$21 -> 240605.1649
A100: COSTO VIAJE SANTA MARTA | B100: =+$E$96/$F$22 -> 

Sheet DATOS REFERENCIA
A1: MENU PRINCIPAL | C1: COSTOS FIJOS | E1: COSTOS VARIABLES | H1: CALCULO DE COSTOS | U1: COSTOS VARIABLES | X1: CALCULO DE COSTOS
A4: DATOS REFERENCIAS
A6: HORAS CARGAR CAMION | B6: HORAS VERIFICAR CARGA | C6: HORAS TRANSPORTAR CARGA | D6: HORAS DESCARGAR CARGA | E6: HORAS ENTREGAR REMISIONES
A7: 3 | B7: 0.5 | C7: 5 | D7: 3 | E7: 0.5
A9: HORAS PROMEDIO | B9: 12
A11: kilometros recorridos | B11: SPH-289 | C11: STL-357 | D11: SXZ-985 | E11: UYU-809 | F11: UZC-663 | G11: TOTAL
A12: santa marta | D12: 293.8 | E12: 1453.5 | G12: =+B12+C12+D12+E12+F12 -> 1747.3
A13: cartagena | B13: 7665.7 | C13: 6756.8 | D13: 7180.7 | E13: 5601.4 | F13: 7695.8 | G13: =+B13+C13+D13+E13+F13 -> 34900.4
A14: barranquilla | B14: 434.3 | C14: 319.3 | D14: 381.9 | E14: 229.1 | G14: =+B14+C14+D14+E14+F14 -> 1364.6
A15: recorridos internos | B15: 87.6 | C15: 302.7 | D15: 134.3 | E15: 229.1 | F15: 183.9 | G15: =+B15+C15+D15+E15+F15 -> 937.6
A16: TOTAL | B16: =SUM(B13:B15) -> 8187.6 | C16: =SUM(C13:C15) -> 7378.8 | D16: =SUM(D12:D15) -> 7990.7 | E16: =SUM(E12:E15) -> 7513.1 | F16: 7879.7 | G16: =SUM(G12:G15) -> 38949.9
A18: valor acpm | B18: 7879.76
